Workbook

Sheet pldt (hidden)

Sheet Interest Rate Measures
A1: Effective Duration / Convexity (Full Valuation Approach)
A4: Specify type of rates: | C4: 1 | F4: Results
A5: Choose duration type: | C5: 1 | I5: Up | J5: Down | K5: Total | L5: =IF(C5=1,"Modified Duration","") -> Modified Duration | AB5: CALCULATIONS (TO BE HIDDEN AN PROTECTED EVENTUALLY)
A6: Choose yield shift amount: | C6: 3 | F6: =INDEX(AF8:AF9,C5) -> Effective Duration (ED) | H6: Option-Free | I6: =(L94-L42)/(L42*Shift/10000) -> 9.524745856 | J6: =(L42-L68)/(L42*Shift/10000) -> 9.045570153 | K6: =(L94-L68)/(2*L42*Shift/10000) -> 9.285158004 | L6: =IF(C5=1,MDURATION(currDate,matDate,coupon/100,YIELD(currDate,matDate,coupon,L42,100,1,1)/100,1,1),"") -> 9.843652535
A7: Choose key rate: | C7: 5 | H7: Callable | I7: =(W94-W42)/(W42*Shift/10000) -> 9.474910984 | J7: =(W42-W68)/(W42*Shift/10000) -> 9.000494171 | K7: =(W94-W68)/(2*W42*Shift/10000) -> 9.237702578 | AH7: Yield Shift | AI7: KR Point | AK7: Lower Bound | AL7: Upper Bound | AN7: Lower Bound | AO7: Upper Bound | AR7: Up Rates | AS7: Down Rates | AV7: Up Shift | AW7: Down Shift | AX7: KRD Up | AY7: KRD Down
A8: Lower Boundary: | C8: 4 | F8: =IF(C5=1,"Effective Convexity","") -> Effective Convexity | H8: =IF(C5=1,"Option-Free","") -> Option-Free | K8: =IF(C5=1,(L94+L68-2*L42)/(2*L42*(Shift/10000)^2),"") -> 47.91757029 | AD8: Spot Rates | AF8: Effective Duration (ED) | AH8: 20 bp | AI8: 1 year | AJ8: 12 | AK8: =IF(KR=1,"",INDEX(AI8:AI17,1):INDEX(AI8:AI17,MAX(C7-1,1))) -> 1 year | AL8: =IF(KR=10,"",INDEX(AI8:AI17,MIN(C7+1,10)):INDEX(AI8:AI17,10)) -> 6 years | AN8: =IF(ISNA(AK8),"",AK8) -> 1 year | AO8: =IF(ISNA(AL8),"",AL8) -> 6 years | AP8: =VALUE(LEFT(AH8,3)) -> 20 | AR8: =rates+INDEX($AP$8:$AP$13,$C$6)/10000 -> 0.055 | AS8: =rates-INDEX($AP$8:$AP$13,$C$6)/10000 -> 0.045 | AU8: 1 | AV8: =IF(OR(AU8<=LB,AU8>=UB),0,IF(AU8=KR,Shift/10000,IF(AU8<KR,(1-(KR-AU8)/(KR-LB))*Shift/10000,(1-(ABS(KR-AU8))/(UB-KR))*Shift/10000))) -> 0 | AW8: =-IF(OR(AU8<=LB,AU8>=UB),0,IF(AU8=KR,Shift/10000,IF(AU8<KR,(1-(KR-AU8)/(KR-LB))*Shift/10000,(1-(ABS(KR-AU8))/(UB-KR))*Shift/10000))) -> 0 | AX8: =rates+AV8:AV17 -> 0.05 | AY8: =rates+AW8:AW17 -> 0.05
A9: Upper Boundary: | C9: 1 | H9: =IF(C5=1,"Callable","") -> Callable | K9: =IF(C5=1,(W94+W68-2*W42)/(2*W42*(Shift/10000)^2),"") -> 47.44168131 | AD9: Par Yields | AF9: Key Rate Duration (KRD) | AH9: 30 bp | AI9: 2 years | AJ9: 10 | AK9: 2 years | AL9: 7 years | AN9: =IF(ISNA(AK9),"",AK9) -> 2 years | AO9: 7 years | AP9: =VALUE(LEFT(AH9,3)) -> 30 | AR9: 0.05602552522 | AS9: 0.04602552522 | AU9: =AU8+1 -> 2 | AV9: 0 | AW9: 0 | AX9: 0.05102552522 | AY9: 0.05102552522
A10: Bond Coupon | C10: 0.25 | AH10: 50 bp | AI10: 3 years | AK10: 3 years | AL10: 8 years | AN10: 3 years | AO10: 8 years | AP10: 50 | AR10: 0.057070377 | AS10: 0.047070377 | AU10: =AU9+1 -> 3 | AV10: 0 | AW10: 0 | AX10: 0.052070377 | AY10: 0.052070377
A11: Bond Maturity (in whole years) | C11: 10 | E11: =IF(C5=2,showMaturityError(mat,UB),"") ->  | AH11: 75 bp | AI11: 4 years | AK11: 4 years | AL11: 9 years | AN11: 4 years | AO11: 9 years | AP11: 75 | AR11: 0.05813651526 | AS11: 0.04813651526 | AU11: 4 | AV11: 0 | AW11: 0 | AX11: 0.05313651526 | AY11: 0.05313651526
A12: Call Price | C12: 105 | AH12: 100 bp | AI12: 5 years | AL12: 10 years | AO12: 10 years | AP12: 100 | AR12: 0.05922611634 | AS12: 0.04922611634 | AU12: 5 | AV12: 0.005 | AW12: -0.005 | AX12: 0.05922611634 | AY12: 0.04922611634
A13: Option-Adjusted Spread (in bp) | C13: 50 | AH13: 150 bp | AI13: 6 years | AP13: 150 | AR13: 0.06034160801 | AS13: 0.05034160801 | AU13: 6 | AV13: 0 | AW13: 0 | AX13: 0.05534160801 | AY13: 0.05534160801
A14: Callability Start (years from now) | C14: 2 | AI14: 7 years | AR14: 0.06148571134 | AS14: 0.05148571134 | AU14: 7 | AV14: 0 | AW14: 0 | AX14: 0.05648571134 | AY14: 0.05648571134
AI15: 8 years | AR15: 0.06266149131 | AS15: 0.05266149131 | AU15: 8 | AV15: 0 | AW15: 0 | AX15: 0.05766149131 | AY15: 0.05766149131
B16: ENTER RATES | E16: SPOT RATE TERM STRUCTURE | AI16: 9 years | AR16: 0.06387241816 | AS16: 0.05387241816 | AU16: 9 | AV16: 0 | AW16: 0 | AX16: 0.05887241816 | AY16: 0.05887241816
A17: Maturity | B17: =INDEX(AD8:AD9,$C$4) -> Spot Rates | C17: Volatilities | E17: Original | F17: Shifted Up | G17: Shifted Down | AI17: 10 years | AR17: 0.06512244264 | AS17: 0.05512244264 | AU17: 10 | AV17: 0 | AW17: 0 | AX17: 0.06012244264 | AY17: 0.06012244264
A18: 1 | B18: 0.05 | C18: =C19+0.01 -> 0.2 | D18: =A18 -> 1 | E18: =IF(C4=1,rates,par2spot(1,rates)) -> 0.05 | F18: =IF(C4=2,IF(C5=1,par2spot(1,Up),par2spot(1,KRDUp)),IF(C5=1,Up,KRDUp)) -> 0.055 | G18: =IF(C4=2,IF(C5=1,par2spot(1,Down),par2spot(1,KRDDown)),IF(C5=1,Down,KRDDown)) -> 0.045
A19: 2 | B19: 0.05102552522 | C19: 0.19 | D19: =A19 -> 2 | E19: 0.05102552522 | F19: 0.05602552522 | G19: 0.04602552522 | AH19: Yield Shift | AI19: KR Point | AK19: Lower Bound | AL19: Upper Bound | AN19: Settlement Date | AO19: Maturity Date
A20: 3 | B20: 0.052070377 | C20: =C21+0.01 -> 0.18 | D20: 3 | E20: 0.052070377 | F20: 0.057070377 | G20: 0.047070377 | AB20: User Choices | AD20: =INDEX(AD8:AD9,$C$4) -> Spot Rates | AF20: =INDEX(AF8:AF9,$C$5) -> Effective Duration (ED) | AH20: =VALUE(LEFT(INDEX(AH8:AH13,$C$6),3)) -> 50 | AI20: =VALUE(LEFT(INDEX(AI8:AI17,$C$7),2)) -> 5 | AK20: =IF(KR=1,0,VALUE(LEFT(INDEX(AK8:AK17,$C$8),2))) -> 4 | AL20: =IF(KR=10,11,VALUE(LEFT(INDEX(AL8:AL13,$C$9),2))) -> 6 | AN20: 1990-01-01 | AO20: =EDATE(AN20,mat*12) -> 2000-01-01
A21: 4 | B21: 0.05313651526 | C21: 0.17 | D21: 4 | E21: 0.05313651526 | F21: 0.05813651526 | G21: 0.04813651526
A22: 5 | B22: 0.05422611634 | C22: 0.155 | D22: 5 | E22: 0.05422611634 | F22: 0.05922611634 | G22: 0.04922611634
A23: 6 | B23: 0.05534160801 | C23: 0.15 | D23: 6 | E23: 0.05534160801 | F23: 0.06034160801 | G23: 0.05034160801
A24: 7 | B24: 0.05648571134 | C24: 0.14 | D24: 7 | E24: 0.05648571134 | F24: 0.06148571134 | G24: 0.05148571134
A25: 8 | B25: 0.05766149131 | C25: 0.13 | D25: 8 | E25: 0.05766149131 | F25: 0.06266149131 | G25: 0.05266149131
A26: 9 | B26: 0.05887241816 | C26: 0.12 | D26: 9 | E26: 0.05887241816 | F26: 0.06387241816 | G26: 0.05387241816
A27: 10 | B27: 0.06012244264 | D27: 10 | E27: 0.06012244264 | F27: 0.06512244264 | G27: 0.05512244264
A30: Original Rate Tree | L30: Option-Free Bond | W30: Callable Bond
V32: =IF(mat=V$54,100,"") -> 100 | AG32: =IF(mat=AG$54,100,"") -> 100
K33: 0.1160353499 | U33: =IF(mat=U$54,100,IF(mat<U$54,"",(0.5*(V32+coupon)+0.5*(V34+coupon))/(1+K33))) -> 89.82690379 | AF33: =IF(mat=AF$54,100,IF(mat<AF$54,"",IF(AF$54>=callstart,MIN(call,(0.5*(AG32+coupon)+0.5*(AG34+coupon))/(1+K33+OAS/10000)),(0.5*(AG32+coupon)+0.5*(AG34+coupon))/(1+K33+OAS/10000)))) -> 89.42626119
J34: 0.1210321779 | T34: =IF(mat=T$54,100,IF(mat<T$54,"",(0.5*(U33+coupon)+0.5*(U35+coupon))/(1+J34))) -> 80.78071798 | V34: =IF(mat=V$54,100,"") -> 100 | AE34: =IF(mat=AE$54,100,IF(mat<AE$54,"",IF(AE$54>=callstart,MIN(call,(0.5*(AF33+coupon)+0.5*(AF35+coupon))/(1+J34+OAS/10000)),(0.5*(AF33+coupon)+0.5*(AF35+coupon))/(1+J34+OAS/10000)))) -> 80.06240014 | AG34: =IF(mat=AG$54,100,"") -> 100
I35: 0.1218877686 | K35: 0.1042127385 | S35: =IF(mat=S$54,100,IF(mat<S$54,"",(0.5*(T34+coupon)+0.5*(T36+coupon))/(1+I35))) -> 73.12348413 | U35: =IF(mat=U$54,100,IF(mat<U$54,"",(0.5*(V34+coupon)+0.5*(V36+coupon))/(1+K35))) -> 90.78866463 | AD35: =IF(mat=AD$54,100,IF(mat<AD$54,"",IF(AD$54>=callstart,MIN(call,(0.5*(AE34+coupon)+0.5*(AE36+coupon))/(1+I35+OAS/10000)),(0.5*(AE34+coupon)+0.5*(AE36+coupon))/(1+I35+OAS/10000)))) -> 72.14964413 | AF35: =IF(mat=AF$54,100,IF(mat<AF$54,"",IF(AF$54>=callstart,MIN(call,(0.5*(AG34+coupon)+0.5*(AG36+coupon))/(1+K35+OAS/10000)),(0.5*(AG34+coupon)+0.5*(AG36+coupon))/(1+K35+OAS/10000)))) -> 90.37941642
H36: 0.1340019141 | J36: 0.1049310074 | R36: =IF(mat=R$54,100,IF(mat<R$54,"",(0.5*(S35+coupon)+0.5*(S37+coupon))/(1+H36))) -> 66.05484276 | T36: =IF(mat=T$54,100,IF(mat<T$54,"",(0.5*(U35+coupon)+0.5*(U37+coupon))/(1+J36))) -> 82.79196691 | V36: =IF(mat=V$54,100,"") -> 100 | AC36: =IF(mat=AC$54,100,IF(mat<AC$54,"",IF(AC$54>=callstart,MIN(call,(0.5*(AD35+coupon)+0.5*(AD37+coupon))/(1+H36+OAS/10000)),(0.5*(AD35+coupon)+0.5*(AD37+coupon))/(1+H36+OAS/10000)))) -> 64.88584214 | AE36: =IF(mat=AE$54,100,IF(mat<AE$54,"",IF(AE$54>=callstart,MIN(call,(0.5*(AF35+coupon)+0.5*(AF37+coupon))/(1+J36+OAS/10000)),(0.5*(AF35+coupon)+0.5*(AF37+coupon))/(1+J36+OAS/10000)))) -> 82.04670283 | AG36: =IF(mat=AG$54,100,"") -> 100
G37: 0.09996992339 | I37: 0.1019734514 | K37: 0.09359470954 | Q37: =IF(mat=Q$54,100,IF(mat<Q$54,"",(0.5*(R36+coupon)+0.5*(R38+coupon))/(1+G37))) -> 62.31586155 | S37: =IF(mat=S$54,100,IF(mat<S$54,"",(0.5*(T36+coupon)+0.5*(T38+coupon))/(1+I37))) -> 76.18915212 | U37: =IF(mat=U$54,100,IF(mat<U$54,"",(0.5*(V36+coupon)+0.5*(V38+coupon))/(1+K37))) -> 91.67015817 | AB37: =IF(mat=AB$54,100,IF(mat<AB$54,"",IF(AB$54>=callstart,MIN(call,(0.5*(AC36+coupon)+0.5*(AC38+coupon))/(1+G37+OAS/10000)),(0.5*(AC36+coupon)+0.5*(AC38+coupon))/(1+G37+OAS/10000)))) -> 60.93073139 | AD37: =IF(mat=AD$54,100,IF(mat<AD$54,"",IF(AD$54>=callstart,MIN(call,(0.5*(AE36+coupon)+0.5*(AE38+coupon))/(1+I37+OAS/10000)),(0.5*(AE36+coupon)+0.5*(AE38+coupon))/(1+I37+OAS/10000)))) -> 75.16055267 | AF37: =IF(mat=AF$54,100,IF(mat<AF$54,"",IF(AF$54>=callstart,MIN(call,(0.5*(AG36+coupon)+0.5*(AG38+coupon))/(1+K37+OAS/10000)),(0.5*(AG36+coupon)+0.5*(AG38+coupon))/(1+K37+OAS/10000)))) -> 91.25294263
F38: 0.1010698957 | H38: 0.1033966088 | J38: 0.09097181014 | P38: =IF(mat=P$54,100,IF(mat<P$54,"",(0.5*(Q37+coupon)+0.5*(Q39+coupon))/(1+F38))) -> 59.08340228 | R38: =IF(mat=R$54,100,IF(mat<R$54,"",(0.5*(S37+coupon)+0.5*(S39+coupon))/(1+H38))) -> 70.53630415 | T38: =IF(mat=T$54,100,IF(mat<T$54,"",(0.5*(U37+coupon)+0.5*(U39+coupon))/(1+J38))) -> 84.62487894 | V38: =IF(mat=V$54,100,"") -> 100 | AA38: =IF(mat=AA$54,100,IF(mat<AA$54,"",IF(AA$54>=callstart,MIN(call,(0.5*(AB37+coupon)+0.5*(AB39+coupon))/(1+F38+OAS/10000)),(0.5*(AB37+coupon)+0.5*(AB39+coupon))/(1+F38+OAS/10000)))) -> 57.50346948 | AC38: =IF(mat=AC$54,100,IF(mat<AC$54,"",IF(AC$54>=callstart,MIN(call,(0.5*(AD37+coupon)+0.5*(AD39+coupon))/(1+H38+OAS/10000)),(0.5*(AD37+coupon)+0.5*(AD39+coupon))/(1+H38+OAS/10000)))) -> 69.26740905 | AE38: =IF(mat=AE$54,100,IF(mat<AE$54,"",IF(AE$54>=callstart,MIN(call,(0.5*(AF37+coupon)+0.5*(AF39+coupon))/(1+J38+OAS/10000)),(0.5*(AF37+coupon)+0.5*(AF39+coupon))/(1+J38+OAS/10000)))) -> 83.85476998 | AG38: =IF(mat=AG$54,100,"") -> 100
E39: 0.08883515198 | G39: 0.08155049746 | I39: 0.08531278332 | K39: 0.08405853042 | O39: =IF(mat=O$54,100,IF(mat<O$54,"",(0.5*(P38+coupon)+0.5*(P40+coupon))/(1+E39))) -> 57.144372 | Q39: =IF(mat=Q$54,100,IF(mat<Q$54,"",(0.5*(R38+coupon)+0.5*(R40+coupon))/(1+G39))) -> 67.29404963 | S39: =IF(mat=S$54,100,IF(mat<S$54,"",(0.5*(T38+coupon)+0.5*(T40+coupon))/(1+I39))) -> 78.96988549 | U39: =IF(mat=U$54,100,IF(mat<U$54,"",(0.5*(V38+coupon)+0.5*(V40+coupon))/(1+K39))) -> 92.47655656 | Z39: =IF(mat=Z$54,100,IF(mat<Z$54,"",IF(Z$54>=callstart,MIN(call,(0.5*(AA38+coupon)+0.5*(AA40+coupon))/(1+E39+OAS/10000)),(0.5*(AA38+coupon)+0.5*(AA40+coupon))/(1+E39+OAS/10000)))) -> 55.35559567 | AB39: =IF(mat=AB$54,100,IF(mat<AB$54,"",IF(AB$54>=callstart,MIN(call,(0.5*(AC38+coupon)+0.5*(AC40+coupon))/(1+G39+OAS/10000)),(0.5*(AC38+coupon)+0.5*(AC40+coupon))/(1+G39+OAS/10000)))) -> 65.77498159 | AD39: =IF(mat=AD$54,100,IF(mat<AD$54,"",IF(AD$54>=callstart,MIN(call,(0.5*(AE38+coupon)+0.5*(AE40+coupon))/(1+I39+OAS/10000)),(0.5*(AE38+coupon)+0.5*(AE40+coupon))/(1+I39+OAS/10000)))) -> 77.89096991 | AF39: =IF(mat=AF$54,100,IF(mat<AF$54,"",IF(AF$54>=callstart,MIN(call,(0.5*(AG38+coupon)+0.5*(AG40+coupon))/(1+K39+OAS/10000)),(0.5*(AG38+coupon)+0.5*(AG40+coupon))/(1+K39+OAS/10000)))) -> 92.05198545
D40: 0.07564282355 | F40: 0.07586379078 | H40: 0.07978138812 | J40: 0.07886963483 | N40: =IF(mat=N$54,100,IF(mat<N$54,"",(0.5*(O39+coupon)+0.5*(O41+coupon))/(1+D40))) -> 56.35739085 | P40: =IF(mat=P$54,100,IF(mat<P$54,"",(0.5*(Q39+coupon)+0.5*(Q41+coupon))/(1+F40))) -> 64.85819966 | R40: =IF(mat=R$54,100,IF(mat<R$54,"",(0.5*(S39+coupon)+0.5*(S41+coupon))/(1+H40))) -> 74.52752156 | T40: =IF(mat=T$54,100,IF(mat<T$54,"",(0.5*(U39+coupon)+0.5*(U41+coupon))/(1+J40))) -> 86.28917349 | V40: =IF(mat=V$54,100,"") -> 100 | Y40: =IF(mat=Y$54,100,IF(mat<Y$54,"",IF(Y$54>=callstart,MIN(call,(0.5*(Z39+coupon)+0.5*(Z41+coupon))/(1+D40+OAS/10000)),(0.5*(Z39+coupon)+0.5*(Z41+coupon))/(1+D40+OAS/10000)))) -> 54.33338093 | AA40: =IF(mat=AA$54,100,IF(mat<AA$54,"",IF(AA$54>=callstart,MIN(call,(0.5*(AB39+coupon)+0.5*(AB41+coupon))/(1+F40+OAS/10000)),(0.5*(AB39+coupon)+0.5*(AB41+coupon))/(1+F40+OAS/10000)))) -> 63.09632332 | AC40: =IF(mat=AC$54,100,IF(mat<AC$54,"",IF(AC$54>=callstart,MIN(call,(0.5*(AD39+coupon)+0.5*(AD41+coupon))/(1+H40+OAS/10000)),(0.5*(AD39+coupon)+0.5*(AD41+coupon))/(1+H40+OAS/10000)))) -> 73.1682689 | AE40: =IF(mat=AE$54,100,IF(mat<AE$54,"",IF(AE$54>=callstart,MIN(call,(0.5*(AF39+coupon)+0.5*(AF41+coupon))/(1+J40+OAS/10000)),(0.5*(AF39+coupon)+0.5*(AF41+coupon))/(1+J40+OAS/10000)))) -> 85.49627041 | AG40: =IF(mat=AG$54,100,"") -> 100
C41: 0.06244642705 | E41: 0.06426270055 | G41: 0.06652484478 | I41: 0.0713741753 | K41: 0.07549397364 | M41: =IF(mat=M$54,100,IF(mat<M$54,"",(0.5*(N40+coupon)+0.5*(N42+coupon))/(1+C41))) -> 56.5751429 | O41: =IF(mat=O$54,100,IF(mat<O$54,"",(0.5*(P40+coupon)+0.5*(P42+coupon))/(1+E41))) -> 63.59647405 | Q41: =IF(mat=Q$54,100,IF(mat<Q$54,"",(0.5*(R40+coupon)+0.5*(R42+coupon))/(1+G41))) -> 71.76312746 | S41: =IF(mat=S$54,100,IF(mat<S$54,"",(0.5*(T40+coupon)+0.5*(T42+coupon))/(1+I41))) -> 81.47697588 | U41: =IF(mat=U$54,100,IF(mat<U$54,"",(0.5*(V40+coupon)+0.5*(V42+coupon))/(1+K41))) -> 93.21298162 | X41: =IF(mat=X$54,100,IF(mat<X$54,"",IF(X$54>=callstart,MIN(call,(0.5*(Y40+coupon)+0.5*(Y42+coupon))/(1+C41+OAS/10000)),(0.5*(Y40+coupon)+0.5*(Y42+coupon))/(1+C41+OAS/10000)))) -> 54.27996961 | Z41: =IF(mat=Z$54,100,IF(mat<Z$54,"",IF(Z$54>=callstart,MIN(call,(0.5*(AA40+coupon)+0.5*(AA42+coupon))/(1+E41+OAS/10000)),(0.5*(AA40+coupon)+0.5*(AA42+coupon))/(1+E41+OAS/10000)))) -> 61.57436069 | AB41: =IF(mat=AB$54,100,IF(mat<AB$54,"",IF(AB$54>=callstart,MIN(call,(0.5*(AC40+coupon)+0.5*(AC42+coupon))/(1+G41+OAS/10000)),(0.5*(AC40+coupon)+0.5*(AC42+coupon))/(1+G41+OAS/10000)))) -> 70.12208082 | AD41: =IF(mat=AD$54,100,IF(mat<AD$54,"",IF(AD$54>=callstart,MIN(call,(0.5*(AE40+coupon)+0.5*(AE42+coupon))/(1+I41+OAS/10000)),(0.5*(AE40+coupon)+0.5*(AE42+coupon))/(1+I41+OAS/10000)))) -> 80.3521827 | AF41: =IF(mat=AF$54,100,IF(mat<AF$54,"",IF(AF$54>=callstart,MIN(call,(0.5*(AG40+coupon)+0.5*(AG42+coupon))/(1+K41+OAS/10000)),(0.5*(AG40+coupon)+0.5*(AG42+coupon))/(1+K41+OAS/10000)))) -> 92.78163733
B42: 0.05 | D42: 0.05270007716 | F42: 0.05694390709 | H42: 0.06155975482 | J42: 0.06837743785 | L42: =IF(mat=L$54,100,IF(mat<L$54,"",(0.5*(M41+coupon)+0.5*(M43+coupon))/(1+B42))) -> 57.64895734 | N42: =IF(mat=N$54,100,IF(mat<N$54,"",(0.5*(O41+coupon)+0.5*(O43+coupon))/(1+D42))) -> 63.35872601 | P42: =IF(mat=P$54,100,IF(mat<P$54,"",(0.5*(Q41+coupon)+0.5*(Q43+coupon))/(1+F42))) -> 70.00851078 | R42: =IF(mat=R$54,100,IF(mat<R$54,"",(0.5*(S41+coupon)+0.5*(S43+coupon))/(1+H42))) -> 78.04679519 | T42: =IF(mat=T$54,100,IF(mat<T$54,"",(0.5*(U41+coupon)+0.5*(U43+coupon))/(1+J42))) -> 87.79548219 | V42: =IF(mat=V$54,100,"") -> 100 | W42: =IF(mat=W$54,100,IF(mat<W$54,"",IF(W$54>=callstart,MIN(call,(0.5*(X41+coupon)+0.5*(X43+coupon))/(1+B42+OAS/10000)),(0.5*(X41+coupon)+0.5*(X43+coupon))/(1+B42+OAS/10000)))) -> 55.03992561 | Y42: =IF(mat=Y$54,100,IF(mat<Y$54,"",IF(Y$54>=callstart,MIN(call,(0.5*(Z41+coupon)+0.5*(Z43+coupon))/(1+D42+OAS/10000)),(0.5*(Z41+coupon)+0.5*(Z43+coupon))/(1+D42+OAS/10000)))) -> 61.04853831 | AA42: =IF(mat=AA$54,100,IF(mat<AA$54,"",IF(AA$54>=callstart,MIN(call,(0.5*(AB41+coupon)+0.5*(AB43+coupon))/(1+F42+OAS/10000)),(0.5*(AB41+coupon)+0.5*(AB43+coupon))/(1+F42+OAS/10000)))) -> 68.08201108 | AC42: =IF(mat=AC$54,100,IF(mat<AC$54,"",IF(AC$54>=callstart,MIN(call,(0.5*(AD41+coupon)+0.5*(AD43+coupon))/(1+H42+OAS/10000)),(0.5*(AD41+coupon)+0.5*(AD43+coupon))/(1+H42+OAS/10000)))) -> 76.60683464 | AE42: =IF(mat=AE$54,100,IF(mat<AE$54,"",IF(AE$54>=callstart,MIN(call,(0.5*(AF41+coupon)+0.5*(AF43+coupon))/(1+J42+OAS/10000)),(0.5*(AF41+coupon)+0.5*(AF43+coupon))/(1+J42+OAS/10000)))) -> 86.98175836 | AG42: =IF(mat=AG$54,100,"") -> 100
C43: 0.04185909185 | E43: 0.04648716854 | G43: 0.05426766372 | I43: 0.05971289064 | K43: 0.06780204253 | M43: =IF(mat=M$54,100,IF(mat<M$54,"",(0.5*(N42+coupon)+0.5*(N44+coupon))/(1+C43))) -> 63.98766751 | O43: =IF(mat=O$54,100,IF(mat<O$54,"",(0.5*(P42+coupon)+0.5*(P44+coupon))/(1+E43))) -> 69.29899747 | Q43: =IF(mat=Q$54,100,IF(mat<Q$54,"",(0.5*(R42+coupon)+0.5*(R44+coupon))/(1+G43))) -> 75.72701036 | S43: =IF(mat=S$54,100,IF(mat<S$54,"",(0.5*(T42+coupon)+0.5*(T44+coupon))/(1+I43))) -> 83.72569765 | U43: =IF(mat=U$54,100,IF(mat<U$54,"",(0.5*(V42+coupon)+0.5*(V44+coupon))/(1+K43))) -> 93.884443 | X43: =IF(mat=X$54,100,IF(mat<X$54,"",IF(X$54>=callstart,MIN(call,(0.5*(Y42+coupon)+0.5*(Y44+coupon))/(1+C43+OAS/10000)),(0.5*(Y42+coupon)+0.5*(Y44+coupon))/(1+C43+OAS/10000)))) -> 61.35427343 | Z43: =IF(mat=Z$54,100,IF(mat<Z$54,"",IF(Z$54>=callstart,MIN(call,(0.5*(AA42+coupon)+0.5*(AA44+coupon))/(1+E43+OAS/10000)),(0.5*(AA42+coupon)+0.5*(AA44+coupon))/(1+E43+OAS/10000)))) -> 67.06772668 | AB43: =IF(mat=AB$54,100,IF(mat<AB$54,"",IF(AB$54>=callstart,MIN(call,(0.5*(AC42+coupon)+0.5*(AC44+coupon))/(1+G43+OAS/10000)),(0.5*(AC42+coupon)+0.5*(AC44+coupon))/(1+G43+OAS/10000)))) -> 73.97647287 | AD43: =IF(mat=AD$54,100,IF(mat<AD$54,"",IF(AD$54>=callstart,MIN(call,(0.5*(AE42+coupon)+0.5*(AE44+coupon))/(1+I43+OAS/10000)),(0.5*(AE42+coupon)+0.5*(AE44+coupon))/(1+I43+OAS/10000)))) -> 82.55935084 | AF43: =IF(mat=AF$54,100,IF(mat<AF$54,"",IF(AF$54>=callstart,MIN(call,(0.5*(AG42+coupon)+0.5*(AG44+coupon))/(1+K43+OAS/10000)),(0.5*(AG42+coupon)+0.5*(AG44+coupon))/(1+K43+OAS/10000)))) -> 93.44687652
D44: 0.03671594997 | F44: 0.04274250629 | H44: 0.04749984305 | J44: 0.05928104034 | N44: =IF(mat=N$54,100,IF(mat<N$54,"",(0.5*(O43+coupon)+0.5*(O45+coupon))/(1+D44))) -> 69.47354031 | P44: =IF(mat=P$54,100,IF(mat<P$54,"",(0.5*(Q43+coupon)+0.5*(Q45+coupon))/(1+F44))) -> 74.53251252 | R44: =IF(mat=R$54,100,IF(mat<R$54,"",(0.5*(S43+coupon)+0.5*(S45+coupon))/(1+H44))) -> 81.12628141 | T44: =IF(mat=T$54,100,IF(mat<T$54,"",(0.5*(U43+coupon)+0.5*(U45+coupon))/(1+J44))) -> 89.15491996 | V44: =IF(mat=V$54,100,"") -> 100 | Y44: =IF(mat=Y$54,100,IF(mat<Y$54,"",IF(Y$54>=callstart,MIN(call,(0.5*(Z43+coupon)+0.5*(Z45+coupon))/(1+D44+OAS/10000)),(0.5*(Z43+coupon)+0.5*(Z45+coupon))/(1+D44+OAS/10000)))) -> 66.91001962 | AA44: =IF(mat=AA$54,100,IF(mat<AA$54,"",IF(AA$54>=callstart,MIN(call,(0.5*(AB43+coupon)+0.5*(AB45+coupon))/(1+F44+OAS/10000)),(0.5*(AB43+coupon)+0.5*(AB45+coupon))/(1+F44+OAS/10000)))) -> 72.45969697 | AC44: =IF(mat=AC$54,100,IF(mat<AC$54,"",IF(AC$54>=callstart,MIN(call,(0.5*(AD43+coupon)+0.5*(AD45+coupon))/(1+H44+OAS/10000)),(0.5*(AD43+coupon)+0.5*(AD45+coupon))/(1+H44+OAS/10000)))) -> 79.61493654 | AE44: =IF(mat=AE$54,100,IF(mat<AE$54,"",IF(AE$54>=callstart,MIN(call,(0.5*(AF43+coupon)+0.5*(AF45+coupon))/(1+J44+OAS/10000)),(0.5*(AF43+coupon)+0.5*(AF45+coupon))/(1+J44+OAS/10000)))) -> 88.3222518 | AG44: =IF(mat=AG$54,100,"") -> 100
E45: 0.03362847842 | G45: 0.0442688643 | I45: 0.04995685475 | K45: 0.06089382699 | O45: =IF(mat=O$54,100,IF(mat<O$54,"",(0.5*(P44+coupon)+0.5*(P46+coupon))/(1+E45))) -> 74.2496572 | Q45: =IF(mat=Q$54,100,IF(mat<Q$54,"",(0.5*(R44+coupon)+0.5*(R46+coupon))/(1+G45))) -> 79.20942745 | S45: =IF(mat=S$54,100,IF(mat<S$54,"",(0.5*(T44+coupon)+0.5*(T46+coupon))/(1+I45))) -> 85.73383643 | U45: =IF(mat=U$54,100,IF(mat<U$54,"",(0.5*(V44+coupon)+0.5*(V46+coupon))/(1+K45))) -> 94.49578973 | Z45: =IF(mat=Z$54,100,IF(mat<Z$54,"",IF(Z$54>=callstart,MIN(call,(0.5*(AA44+coupon)+0.5*(AA46+coupon))/(1+E45+OAS/10000)),(0.5*(AA44+coupon)+0.5*(AA46+coupon))/(1+E45+OAS/10000)))) -> 71.83474263 | AB45: =IF(mat=AB$54,100,IF(mat<AB$54,"",IF(AB$54>=callstart,MIN(call,(0.5*(AC44+coupon)+0.5*(AC46+coupon))/(1+G45+OAS/10000)),(0.5*(AC44+coupon)+0.5*(AC46+coupon))/(1+G45+OAS/10000)))) -> 77.36173615 | AD45: =IF(mat=AD$54,100,IF(mat<AD$54,"",IF(AD$54>=callstart,MIN(call,(0.5*(AE44+coupon)+0.5*(AE46+coupon))/(1+I45+OAS/10000)),(0.5*(AE44+coupon)+0.5*(AE46+coupon))/(1+I45+OAS/10000)))) -> 84.53006559 | AF45: =IF(mat=AF$54,100,IF(mat<AF$54,"",IF(AF$54>=callstart,MIN(call,(0.5*(AG44+coupon)+0.5*(AG46+coupon))/(1+K45+OAS/10000)),(0.5*(AG44+coupon)+0.5*(AG46+coupon))/(1+K45+OAS/10000)))) -> 94.05251955
F46: 0.0320828327 | H46: 0.03665113833 | J46: 0.05139475609 | P46: =IF(mat=P$54,100,IF(mat<P$54,"",(0.5*(Q45+coupon)+0.5*(Q47+coupon))/(1+F46))) -> 78.46060787 | R46: =IF(mat=R$54,100,IF(mat<R$54,"",(0.5*(S45+coupon)+0.5*(S47+coupon))/(1+H46))) -> 83.80559628 | T46: =IF(mat=T$54,100,IF(mat<T$54,"",(0.5*(U45+coupon)+0.5*(U47+coupon))/(1+J46))) -> 90.37873854 | V46: =IF(mat=V$54,100,"") -> 100 | AA46: =IF(mat=AA$54,100,IF(mat<AA$54,"",IF(AA$54>=callstart,MIN(call,(0.5*(AB45+coupon)+0.5*(AB47+coupon))/(1+F46+OAS/10000)),(0.5*(AB45+coupon)+0.5*(AB47+coupon))/(1+F46+OAS/10000)))) -> 76.25952191 | AC46: =IF(mat=AC$54,100,IF(mat<AC$54,"",IF(AC$54>=callstart,MIN(call,(0.5*(AD45+coupon)+0.5*(AD47+coupon))/(1+H46+OAS/10000)),(0.5*(AD45+coupon)+0.5*(AD47+coupon))/(1+H46+OAS/10000)))) -> 82.23158551 | AE46: =IF(mat=AE$54,100,IF(mat<AE$54,"",IF(AE$54>=callstart,MIN(call,(0.5*(AF45+coupon)+0.5*(AF47+coupon))/(1+J46+OAS/10000)),(0.5*(AF45+coupon)+0.5*(AF47+coupon))/(1+J46+OAS/10000)))) -> 89.52889245 | AG46: =IF(mat=AG$54,100,"") -> 100
G47: 0.03611234042 | I47: 0.04179478349 | K47: 0.05468947579 | Q47: =IF(mat=Q$54,100,IF(mat<Q$54,"",(0.5*(R46+coupon)+0.5*(R48+coupon))/(1+G47))) -> 82.24626541 | S47: =IF(mat=S$54,100,IF(mat<S$54,"",(0.5*(T46+coupon)+0.5*(T48+coupon))/(1+I47))) -> 87.52049713 | U47: =IF(mat=U$54,100,IF(mat<U$54,"",(0.5*(V46+coupon)+0.5*(V48+coupon))/(1+K47))) -> 95.05167379 | AB47: =IF(mat=AB$54,100,IF(mat<AB$54,"",IF(AB$54>=callstart,MIN(call,(0.5*(AC46+coupon)+0.5*(AC48+coupon))/(1+G47+OAS/10000)),(0.5*(AC46+coupon)+0.5*(AC48+coupon))/(1+G47+OAS/10000)))) -> 80.31314585 | AD47: =IF(mat=AD$54,100,IF(mat<AD$54,"",IF(AD$54>=callstart,MIN(call,(0.5*(AE46+coupon)+0.5*(AE48+coupon))/(1+I47+OAS/10000)),(0.5*(AE46+coupon)+0.5*(AE48+coupon))/(1+I47+OAS/10000)))) -> 86.28318372 | AF47: =IF(mat=AF$54,100,IF(mat<AF$54,"",IF(AF$54>=callstart,MIN(call,(0.5*(AG46+coupon)+0.5*(AG48+coupon))/(1+K47+OAS/10000)),(0.5*(AG46+coupon)+0.5*(AG48+coupon))/(1+K47+OAS/10000)))) -> 94.60318545
H48: 0.02828021852 | J48: 0.04455760113 | R48: =IF(mat=R$54,100,IF(mat<R$54,"",(0.5*(S47+coupon)+0.5*(S49+coupon))/(1+H48))) -> 86.1271448 | T48: =IF(mat=T$54,100,IF(mat<T$54,"",(0.5*(U47+coupon)+0.5*(U49+coupon))/(1+J48))) -> 91.47805619 | V48: =IF(mat=V$54,100,"") -> 100 | AC48: =IF(mat=AC$54,100,IF(mat<AC$54,"",IF(AC$54>=callstart,MIN(call,(0.5*(AD47+coupon)+0.5*(AD49+coupon))/(1+H48+OAS/10000)),(0.5*(AD47+coupon)+0.5*(AD49+coupon))/(1+H48+OAS/10000)))) -> 84.49842898 | AE48: =IF(mat=AE$54,100,IF(mat<AE$54,"",IF(AE$54>=callstart,MIN(call,(0.5*(AF47+coupon)+0.5*(AF49+coupon))/(1+J48+OAS/10000)),(0.5*(AF47+coupon)+0.5*(AF49+coupon))/(1+J48+OAS/10000)))) -> 90.61268079 | AG48: =IF(mat=AG$54,100,"") -> 100
I49: 0.0349662511 | K49: 0.04911727359 | S49: =IF(mat=S$54,100,IF(mat<S$54,"",(0.5*(T48+coupon)+0.5*(T50+coupon))/(1+I49))) -> 89.10518142 | U49: =IF(mat=U$54,100,IF(mat<U$54,"",(0.5*(V48+coupon)+0.5*(V50+coupon))/(1+K49))) -> 95.55652406 | AD49: =IF(mat=AD$54,100,IF(mat<AD$54,"",IF(AD$54>=callstart,MIN(call,(0.5*(AE48+coupon)+0.5*(AE50+coupon))/(1+I49+OAS/10000)),(0.5*(AE48+coupon)+0.5*(AE50+coupon))/(1+I49+OAS/10000)))) -> 87.83792661 | AF49: =IF(mat=AF$54,100,IF(mat<AF$54,"",IF(AF$54>=callstart,MIN(call,(0.5*(AG48+coupon)+0.5*(AG50+coupon))/(1+K49+OAS/10000)),(0.5*(AG48+coupon)+0.5*(AG50+coupon))/(1+K49+OAS/10000)))) -> 95.1032703
J50: 0.03863000715 | T50: =IF(mat=T$54,100,IF(mat<T$54,"",(0.5*(U49+coupon)+0.5*(U51+coupon))/(1+J50))) -> 92.46365496 | V50: =IF(mat=V$54,100,"") -> 100 | AE50: =IF(mat=AE$54,100,IF(mat<AE$54,"",IF(AE$54>=callstart,MIN(call,(0.5*(AF49+coupon)+0.5*(AF51+coupon))/(1+J50+OAS/10000)),(0.5*(AF49+coupon)+0.5*(AF51+coupon))/(1+J50+OAS/10000)))) -> 91.5842777 | AG50: =IF(mat=AG$54,100,"") -> 100
K51: 0.04411281163 | U51: =IF(mat=U$54,100,IF(mat<U$54,"",(0.5*(V50+coupon)+0.5*(V52+coupon))/(1+K51))) -> 96.01452916 | AF51: =IF(mat=AF$54,100,IF(mat<AF$54,"",IF(AF$54>=callstart,MIN(call,(0.5*(AG50+coupon)+0.5*(AG52+coupon))/(1+K51+OAS/10000)),(0.5*(AG50+coupon)+0.5*(AG52+coupon))/(1+K51+OAS/10000)))) -> 95.55693047
V52: =IF(mat=V$54,100,"") -> 100 | AG52: =IF(mat=AG$54,100,"") -> 100
B54: Time in Years | C54: 1 | D54: 2 | E54: 3 | F54: 4 | G54: 5 | H54: 6 | I54: 7 | J54: 8 | K54: 9 | M54: =L54+1 -> 1 | N54: =M54+1 -> 2 | O54: 3 | P54: 4 | Q54: 5 | R54: 6 | S54: 7 | T54: 8 | U54: 9 | V54: 10 | W54: 0 | X54: =W54+1 -> 1 | Y54: =X54+1 -> 2 | Z54: 3 | AA54: 4 | AB54: 5 | AC54: 6 | AD54: 7 | AE54: 8 | AF54: 9 | AG54: 10
A56: Up Rate Tree
V58: =IF(mat=V$54,100,"") -> 100 | AG58: =IF(mat=AG$54,100,"") -> 100
K59: 0.1234081672 | U59: =IF(mat=U$54,100,IF(mat<U$54,"",(0.5*(V58+coupon)+0.5*(V60+coupon))/(1+K59))) -> 89.23737865 | AF59: =IF(mat=AF$80,100,IF(mat<AF$80,"",IF(AF$80>=callstart,MIN(call,(0.5*(AG58+coupon)+0.5*(AG60+coupon))/(1+K59+OAS/10000)),(0.5*(AG58+coupon)+0.5*(AG60+coupon))/(1+K59+OAS/10000)))) -> 88.84196598
J60: 0.1294026431 | T60: =IF(mat=T$54,100,IF(mat<T$54,"",(0.5*(U59+coupon)+0.5*(U61+coupon))/(1+J60))) -> 79.67505218 | V60: =IF(mat=V$54,100,"") -> 100 | AE60: =IF(mat=AE$80,100,IF(mat<AE$80,"",IF(AE$80>=callstart,MIN(call,(0.5*(AF59+coupon)+0.5*(AF61+coupon))/(1+J60+OAS/10000)),(0.5*(AF59+coupon)+0.5*(AF61+coupon))/(1+J60+OAS/10000)))) -> 78.97140925 | AG60: =IF(mat=AG$54,100,"") -> 100
I61: 0.1309282176 | K61: 0.1110119802 | S61: =IF(mat=S$54,100,IF(mat<S$54,"",(0.5*(T60+coupon)+0.5*(T62+coupon))/(1+I61))) -> 71.59257685 | U61: =IF(mat=U$54,100,IF(mat<U$54,"",(0.5*(V60+coupon)+0.5*(V62+coupon))/(1+K61))) -> 90.23305039 | AD61: =IF(mat=AD$80,100,IF(mat<AD$80,"",IF(AD$80>=callstart,MIN(call,(0.5*(AE60+coupon)+0.5*(AE62+coupon))/(1+I61+OAS/10000)),(0.5*(AE60+coupon)+0.5*(AE62+coupon))/(1+I61+OAS/10000)))) -> 70.6458078 | AF61: =IF(mat=AF$80,100,IF(mat<AF$80,"",IF(AF$80>=callstart,MIN(call,(0.5*(AG60+coupon)+0.5*(AG62+coupon))/(1+K61+OAS/10000)),(0.5*(AG60+coupon)+0.5*(AG62+coupon))/(1+K61+OAS/10000)))) -> 89.82878479
H62: 0.1447608294 | J62: 0.1123253016 | R62: =IF(mat=R$54,100,IF(mat<R$54,"",(0.5*(S61+coupon)+0.5*(S63+coupon))/(1+H62))) -> 64.14214376 | T62: =IF(mat=T$54,100,IF(mat<T$54,"",(0.5*(U61+coupon)+0.5*(U63+coupon))/(1+J62))) -> 81.75707849 | V62: =IF(mat=V$54,100,"") -> 100 | AC62: =IF(mat=AC$80,100,IF(mat<AC$80,"",IF(AC$80>=callstart,MIN(call,(0.5*(AD61+coupon)+0.5*(AD63+coupon))/(1+H62+OAS/10000)),(0.5*(AD61+coupon)+0.5*(AD63+coupon))/(1+H62+OAS/10000)))) -> 63.0153007 | AE62: =IF(mat=AE$80,100,IF(mat<AE$80,"",IF(AE$80>=callstart,MIN(call,(0.5*(AF61+coupon)+0.5*(AF63+coupon))/(1+J62+OAS/10000)),(0.5*(AF61+coupon)+0.5*(AF63+coupon))/(1+J62+OAS/10000)))) -> 81.02572383 | AG62: =IF(mat=AG$54,100,"") -> 100
G63: 0.1081002415 | I63: 0.1096335813 | K63: 0.09986097378 | Q63: =IF(mat=Q$54,100,IF(mat<Q$54,"",(0.5*(R62+coupon)+0.5*(R64+coupon))/(1+G63))) -> 60.19976819 | S63: =IF(mat=S$54,100,IF(mat<S$54,"",(0.5*(T62+coupon)+0.5*(T64+coupon))/(1+I63))) -> 74.76225052 | U63: =IF(mat=U$54,100,IF(mat<U$54,"",(0.5*(V62+coupon)+0.5*(V64+coupon))/(1+K63))) -> 91.14788359 | AB63: =IF(mat=AB$80,100,IF(mat<AB$80,"",IF(AB$80>=callstart,MIN(call,(0.5*(AC62+coupon)+0.5*(AC64+coupon))/(1+G63+OAS/10000)),(0.5*(AC62+coupon)+0.5*(AC64+coupon))/(1+G63+OAS/10000)))) -> 58.87096126 | AD63: =IF(mat=AD$80,100,IF(mat<AD$80,"",IF(AD$80>=callstart,MIN(call,(0.5*(AE62+coupon)+0.5*(AE64+coupon))/(1+I63+OAS/10000)),(0.5*(AE62+coupon)+0.5*(AE64+coupon))/(1+I63+OAS/10000)))) -> 73.759241 | AF63: =IF(mat=AF$80,100,IF(mat<AF$80,"",IF(AF$80>=callstart,MIN(call,(0.5*(AG62+coupon)+0.5*(AG64+coupon))/(1+K63+OAS/10000)),(0.5*(AG62+coupon)+0.5*(AG64+coupon))/(1+K63+OAS/10000)))) -> 90.73539783
F64: 0.1097717465 | H64: 0.1117134469 | J64: 0.09750166662 | P64: =IF(mat=P$54,100,IF(mat<P$54,"",(0.5*(Q63+coupon)+0.5*(Q65+coupon))/(1+F64))) -> 56.78200072 | R64: =IF(mat=R$54,100,IF(mat<R$54,"",(0.5*(S63+coupon)+0.5*(S65+coupon))/(1+H64))) -> 68.77261157 | T64: =IF(mat=T$54,100,IF(mat<T$54,"",(0.5*(U63+coupon)+0.5*(U65+coupon))/(1+J64))) -> 83.66032909 | V64: =IF(mat=V$54,100,"") -> 100 | AA64: =IF(mat=AA$80,100,IF(mat<AA$80,"",IF(AA$80>=callstart,MIN(call,(0.5*(AB63+coupon)+0.5*(AB65+coupon))/(1+F64+OAS/10000)),(0.5*(AB63+coupon)+0.5*(AB65+coupon))/(1+F64+OAS/10000)))) -> 55.27380607 | AC64: =IF(mat=AC$80,100,IF(mat<AC$80,"",IF(AC$80>=callstart,MIN(call,(0.5*(AD63+coupon)+0.5*(AD65+coupon))/(1+H64+OAS/10000)),(0.5*(AD63+coupon)+0.5*(AD65+coupon))/(1+H64+OAS/10000)))) -> 67.54326168 | AE64: =IF(mat=AE$80,100,IF(mat<AE$80,"",IF(AE$80>=callstart,MIN(call,(0.5*(AF63+coupon)+0.5*(AF65+coupon))/(1+J64+OAS/10000)),(0.5*(AF63+coupon)+0.5*(AF65+coupon))/(1+J64+OAS/10000)))) -> 82.90333007 | AG64: =IF(mat=AG$54,100,"") -> 100
E65: 0.09678260145 | G65: 0.08824471586 | I65: 0.09180238118 | K65: 0.08983007115 | O65: =IF(mat=O$54,100,IF(mat<O$54,"",(0.5*(P64+coupon)+0.5*(P66+coupon))/(1+E65))) -> 54.70994759 | Q65: =IF(mat=Q$54,100,IF(mat<Q$54,"",(0.5*(R64+coupon)+0.5*(R66+coupon))/(1+G65))) -> 65.33035203 | S65: =IF(mat=S$54,100,IF(mat<S$54,"",(0.5*(T64+coupon)+0.5*(T66+coupon))/(1+I65))) -> 77.6486236 | U65: =IF(mat=U$54,100,IF(mat<U$54,"",(0.5*(V64+coupon)+0.5*(V66+coupon))/(1+K65))) -> 91.98681763 | Z65: =IF(mat=Z$80,100,IF(mat<Z$80,"",IF(Z$80>=callstart,MIN(call,(0.5*(AA64+coupon)+0.5*(AA66+coupon))/(1+E65+OAS/10000)),(0.5*(AA64+coupon)+0.5*(AA66+coupon))/(1+E65+OAS/10000)))) -> 53.0083071 | AB65: =IF(mat=AB$80,100,IF(mat<AB$80,"",IF(AB$80>=callstart,MIN(call,(0.5*(AC64+coupon)+0.5*(AC66+coupon))/(1+G65+OAS/10000)),(0.5*(AC64+coupon)+0.5*(AC66+coupon))/(1+G65+OAS/10000)))) -> 63.86439339 | AD65: =IF(mat=AD$80,100,IF(mat<AD$80,"",IF(AD$80>=callstart,MIN(call,(0.5*(AE64+coupon)+0.5*(AE66+coupon))/(1+I65+OAS/10000)),(0.5*(AE64+coupon)+0.5*(AE66+coupon))/(1+I65+OAS/10000)))) -> 76.59369615 | AF65: =IF(mat=AF$80,100,IF(mat<AF$80,"",IF(AF$80>=callstart,MIN(call,(0.5*(AG64+coupon)+0.5*(AG66+coupon))/(1+K65+OAS/10000)),(0.5*(AG64+coupon)+0.5*(AG66+coupon))/(1+K65+OAS/10000)))) -> 91.5667213
D66: 0.08266171863 | F66: 0.08241086348 | H66: 0.08621043609 | J66: 0.08463431528 | N66: =IF(mat=N$54,100,IF(mat<N$54,"",(0.5*(O65+coupon)+0.5*(O67+coupon))/(1+D66))) -> 53.83143122 | P66: =IF(mat=P$54,100,IF(mat<P$54,"",(0.5*(Q65+coupon)+0.5*(Q67+coupon))/(1+F66))) -> 62.72783657 | R66: =IF(mat=R$54,100,IF(mat<R$54,"",(0.5*(S65+coupon)+0.5*(S67+coupon))/(1+H66))) -> 72.91820919 | T66: =IF(mat=T$54,100,IF(mat<T$54,"",(0.5*(U65+coupon)+0.5*(U67+coupon))/(1+J66))) -> 85.3935752 | V66: =IF(mat=V$54,100,"") -> 100 | Y66: =IF(mat=Y$80,100,IF(mat<Y$80,"",IF(Y$80>=callstart,MIN(call,(0.5*(Z65+coupon)+0.5*(Z67+coupon))/(1+D66+OAS/10000)),(0.5*(Z65+coupon)+0.5*(Z67+coupon))/(1+D66+OAS/10000)))) -> 51.90967233 | AA66: =IF(mat=AA$80,100,IF(mat<AA$80,"",IF(AA$80>=callstart,MIN(call,(0.5*(AB65+coupon)+0.5*(AB67+coupon))/(1+F66+OAS/10000)),(0.5*(AB65+coupon)+0.5*(AB67+coupon))/(1+F66+OAS/10000)))) -> 61.03345492 | AC66: =IF(mat=AC$80,100,IF(mat<AC$80,"",IF(AC$80>=callstart,MIN(call,(0.5*(AD65+coupon)+0.5*(AD67+coupon))/(1+H66+OAS/10000)),(0.5*(AD65+coupon)+0.5*(AD67+coupon))/(1+H66+OAS/10000)))) -> 71.59555952 | AE66: =IF(mat=AE$80,100,IF(mat<AE$80,"",IF(AE$80>=callstart,MIN(call,(0.5*(AF65+coupon)+0.5*(AF67+coupon))/(1+J66+OAS/10000)),(0.5*(AF65+coupon)+0.5*(AF67+coupon))/(1+J66+OAS/10000)))) -> 84.61296657 | AG66: =IF(mat=AG$54,100,"") -> 100
C67: 0.06845693972 | E67: 0.07001709582 | G67: 0.07203619317 | I67: 0.07687131163 | K67: 0.0808067594 | M67: =IF(mat=M$54,100,IF(mat<M$54,"",(0.5*(N66+coupon)+0.5*(N68+coupon))/(1+C67))) -> 53.99253035 | O67: =IF(mat=O$54,100,IF(mat<O$54,"",(0.5*(P66+coupon)+0.5*(P68+coupon))/(1+E67))) -> 61.35251209 | Q67: =IF(mat=Q$54,100,IF(mat<Q$54,"",(0.5*(R66+coupon)+0.5*(R68+coupon))/(1+G67))) -> 69.96423146 | S67: =IF(mat=S$54,100,IF(mat<S$54,"",(0.5*(T66+coupon)+0.5*(T68+coupon))/(1+I67))) -> 80.26041601 | U67: =IF(mat=U$54,100,IF(mat<U$54,"",(0.5*(V66+coupon)+0.5*(V68+coupon))/(1+K67))) -> 92.7547863 | X67: =IF(mat=X$80,100,IF(mat<X$80,"",IF(X$80>=callstart,MIN(call,(0.5*(Y66+coupon)+0.5*(Y68+coupon))/(1+C67+OAS/10000)),(0.5*(Y66+coupon)+0.5*(Y68+coupon))/(1+C67+OAS/10000)))) -> 51.81415465 | Z67: =IF(mat=Z$80,100,IF(mat<Z$80,"",IF(Z$80>=callstart,MIN(call,(0.5*(AA66+coupon)+0.5*(AA68+coupon))/(1+E67+OAS/10000)),(0.5*(AA66+coupon)+0.5*(AA68+coupon))/(1+E67+OAS/10000)))) -> 59.41201975 | AB67: =IF(mat=AB$80,100,IF(mat<AB$80,"",IF(AB$80>=callstart,MIN(call,(0.5*(AC66+coupon)+0.5*(AC68+coupon))/(1+G67+OAS/10000)),(0.5*(AC66+coupon)+0.5*(AC68+coupon))/(1+G67+OAS/10000)))) -> 68.37249044 | AD67: =IF(mat=AD$80,100,IF(mat<AD$80,"",IF(AD$80>=callstart,MIN(call,(0.5*(AE66+coupon)+0.5*(AE68+coupon))/(1+I67+OAS/10000)),(0.5*(AE66+coupon)+0.5*(AE68+coupon))/(1+I67+OAS/10000)))) -> 79.1579473 | AF67: =IF(mat=AF$80,100,IF(mat<AF$80,"",IF(AF$80>=callstart,MIN(call,(0.5*(AG66+coupon)+0.5*(AG68+coupon))/(1+K67+OAS/10000)),(0.5*(AG66+coupon)+0.5*(AG68+coupon))/(1+K67+OAS/10000)))) -> 92.32766248
B68: 0.055 | D68: 0.05759114162 | F68: 0.06186974918 | H68: 0.06652949573 | J68: 0.07346507569 | L68: =IF(mat=L$54,100,IF(mat<L$54,"",(0.5*(M67+coupon)+0.5*(M69+coupon))/(1+B68))) -> 55.0416189 | N68: =IF(mat=N$54,100,IF(mat<N$54,"",(0.5*(O67+coupon)+0.5*(O69+coupon))/(1+D68))) -> 61.04595628 | P68: =IF(mat=P$54,100,IF(mat<P$54,"",(0.5*(Q67+coupon)+0.5*(Q69+coupon))/(1+F68))) -> 68.06863704 | R68: =IF(mat=R$54,100,IF(mat<R$54,"",(0.5*(S67+coupon)+0.5*(S69+coupon))/(1+H68))) -> 76.5901675 | T68: =IF(mat=T$54,100,IF(mat<T$54,"",(0.5*(U67+coupon)+0.5*(U69+coupon))/(1+J68))) -> 86.96670373 | V68: =IF(mat=V$54,100,"") -> 100 | W68: =IF(mat=W$80,100,IF(mat<W$80,"",IF(W$80>=callstart,MIN(call,(0.5*(X67+coupon)+0.5*(X69+coupon))/(1+B68+OAS/10000)),(0.5*(X67+coupon)+0.5*(X69+coupon))/(1+B68+OAS/10000)))) -> 52.56299297 | Y68: =IF(mat=Y$80,100,IF(mat<Y$80,"",IF(Y$80>=callstart,MIN(call,(0.5*(Z67+coupon)+0.5*(Z69+coupon))/(1+D68+OAS/10000)),(0.5*(Z67+coupon)+0.5*(Z69+coupon))/(1+D68+OAS/10000)))) -> 58.83085543 | AA68: =IF(mat=AA$80,100,IF(mat<AA$80,"",IF(AA$80>=callstart,MIN(call,(0.5*(AB67+coupon)+0.5*(AB69+coupon))/(1+F68+OAS/10000)),(0.5*(AB67+coupon)+0.5*(AB69+coupon))/(1+F68+OAS/10000)))) -> 66.20441893 | AC68: =IF(mat=AC$80,100,IF(mat<AC$80,"",IF(AC$80>=callstart,MIN(call,(0.5*(AD67+coupon)+0.5*(AD69+coupon))/(1+H68+OAS/10000)),(0.5*(AD67+coupon)+0.5*(AD69+coupon))/(1+H68+OAS/10000)))) -> 75.18373413 | AE68: =IF(mat=AE$80,100,IF(mat<AE$80,"",IF(AE$80>=callstart,MIN(call,(0.5*(AF67+coupon)+0.5*(AF69+coupon))/(1+J68+OAS/10000)),(0.5*(AF67+coupon)+0.5*(AF69+coupon))/(1+J68+OAS/10000)))) -> 86.16445798 | AG68: =IF(mat=AG$54,100,"") -> 100
C69: 0.04588805898 | E69: 0.05065366744 | G69: 0.05880480294 | I69: 0.06436868495 | K69: 0.07268982735 | M69: =IF(mat=M$54,100,IF(mat<M$54,"",(0.5*(N68+coupon)+0.5*(N70+coupon))/(1+C69))) -> 61.64528552 | O69: =IF(mat=O$54,100,IF(mat<O$54,"",(0.5*(P68+coupon)+0.5*(P70+coupon))/(1+E69))) -> 67.2708131 | Q69: =IF(mat=Q$54,100,IF(mat<Q$54,"",(0.5*(R68+coupon)+0.5*(R70+coupon))/(1+G69))) -> 74.09582163 | S69: =IF(mat=S$54,100,IF(mat<S$54,"",(0.5*(T68+coupon)+0.5*(T70+coupon))/(1+I69))) -> 82.61092944 | U69: =IF(mat=U$54,100,IF(mat<U$54,"",(0.5*(V68+coupon)+0.5*(V70+coupon))/(1+K69))) -> 93.45665209 | X69: =IF(mat=X$80,100,IF(mat<X$80,"",IF(X$80>=callstart,MIN(call,(0.5*(Y68+coupon)+0.5*(Y70+coupon))/(1+C69+OAS/10000)),(0.5*(Y68+coupon)+0.5*(Y70+coupon))/(1+C69+OAS/10000)))) -> 59.11939044 | Z69: =IF(mat=Z$80,100,IF(mat<Z$80,"",IF(Z$80>=callstart,MIN(call,(0.5*(AA68+coupon)+0.5*(AA70+coupon))/(1+E69+OAS/10000)),(0.5*(AA68+coupon)+0.5*(AA70+coupon))/(1+E69+OAS/10000)))) -> 65.11427192 | AB69: =IF(mat=AB$80,100,IF(mat<AB$80,"",IF(AB$80>=callstart,MIN(call,(0.5*(AC68+coupon)+0.5*(AC70+coupon))/(1+G69+OAS/10000)),(0.5*(AC68+coupon)+0.5*(AC70+coupon))/(1+G69+OAS/10000)))) -> 72.3904932 | AD69: =IF(mat=AD$80,100,IF(mat<AD$80,"",IF(AD$80>=callstart,MIN(call,(0.5*(AE68+coupon)+0.5*(AE70+coupon))/(1+I69+OAS/10000)),(0.5*(AE68+coupon)+0.5*(AE70+coupon))/(1+I69+OAS/10000)))) -> 81.46523013 | AF69: =IF(mat=AF$80,100,IF(mat<AF$80,"",IF(AF$80>=callstart,MIN(call,(0.5*(AG68+coupon)+0.5*(AG70+coupon))/(1+K69+OAS/10000)),(0.5*(AG68+coupon)+0.5*(AG70+coupon))/(1+K69+OAS/10000)))) -> 93.02305492
D70: 0.04012425142 | F70: 0.0464485591 | H70: 0.05134150809 | J70: 0.06376984707 | N70: =IF(mat=N$54,100,IF(mat<N$54,"",(0.5*(O69+coupon)+0.5*(O71+coupon))/(1+D70))) -> 67.40217975 | P70: =IF(mat=P$54,100,IF(mat<P$54,"",(0.5*(Q69+coupon)+0.5*(Q71+coupon))/(1+F70))) -> 72.78801595 | R70: =IF(mat=R$54,100,IF(mat<R$54,"",(0.5*(S69+coupon)+0.5*(S71+coupon))/(1+H70))) -> 79.81585614 | T70: =IF(mat=T$54,100,IF(mat<T$54,"",(0.5*(U69+coupon)+0.5*(U71+coupon))/(1+J70))) -> 88.39026894 | V70: =IF(mat=V$54,100,"") -> 100 | Y70: =IF(mat=Y$80,100,IF(mat<Y$80,"",IF(Y$80>=callstart,MIN(call,(0.5*(Z69+coupon)+0.5*(Z71+coupon))/(1+D70+OAS/10000)),(0.5*(Z69+coupon)+0.5*(Z71+coupon))/(1+D70+OAS/10000)))) -> 64.9248675 | AA70: =IF(mat=AA$80,100,IF(mat<AA$80,"",IF(AA$80>=callstart,MIN(call,(0.5*(AB69+coupon)+0.5*(AB71+coupon))/(1+F70+OAS/10000)),(0.5*(AB69+coupon)+0.5*(AB71+coupon))/(1+F70+OAS/10000)))) -> 70.77182098 | AC70: =IF(mat=AC$80,100,IF(mat<AC$80,"",IF(AC$80>=callstart,MIN(call,(0.5*(AD69+coupon)+0.5*(AD71+coupon))/(1+H70+OAS/10000)),(0.5*(AD69+coupon)+0.5*(AD71+coupon))/(1+H70+OAS/10000)))) -> 78.33497458 | AE70: =IF(mat=AE$80,100,IF(mat<AE$80,"",IF(AE$80>=callstart,MIN(call,(0.5*(AF69+coupon)+0.5*(AF71+coupon))/(1+J70+OAS/10000)),(0.5*(AF69+coupon)+0.5*(AF71+coupon))/(1+J70+OAS/10000)))) -> 87.56827405 | AG70: =IF(mat=AG$54,100,"") -> 100
E71: 0.03664525063 | G71: 0.04800371447 | I71: 0.05389953045 | K71: 0.06538823036 | O71: =IF(mat=O$54,100,IF(mat<O$54,"",(0.5*(P70+coupon)+0.5*(P72+coupon))/(1+E71))) -> 72.44247042 | Q71: =IF(mat=Q$54,100,IF(mat<Q$54,"",(0.5*(R70+coupon)+0.5*(R72+coupon))/(1+G71))) -> 77.74200718 | S71: =IF(mat=S$54,100,IF(mat<S$54,"",(0.5*(T70+coupon)+0.5*(T72+coupon))/(1+I71))) -> 84.71651569 | U71: =IF(mat=U$54,100,IF(mat<U$54,"",(0.5*(V70+coupon)+0.5*(V72+coupon))/(1+K71))) -> 94.09715364 | Z71: =IF(mat=Z$80,100,IF(mat<Z$80,"",IF(Z$80>=callstart,MIN(call,(0.5*(AA70+coupon)+0.5*(AA72+coupon))/(1+E71+OAS/10000)),(0.5*(AA70+coupon)+0.5*(AA72+coupon))/(1+E71+OAS/10000)))) -> 70.09483518 | AB71: =IF(mat=AB$80,100,IF(mat<AB$80,"",IF(AB$80>=callstart,MIN(call,(0.5*(AC70+coupon)+0.5*(AC72+coupon))/(1+G71+OAS/10000)),(0.5*(AC70+coupon)+0.5*(AC72+coupon))/(1+G71+OAS/10000)))) -> 75.93536519 | AD71: =IF(mat=AD$80,100,IF(mat<AD$80,"",IF(AD$80>=callstart,MIN(call,(0.5*(AE70+coupon)+0.5*(AE72+coupon))/(1+I71+OAS/10000)),(0.5*(AE70+coupon)+0.5*(AE72+coupon))/(1+I71+OAS/10000)))) -> 83.53174023 | AF71: =IF(mat=AF$80,100,IF(mat<AF$80,"",IF(AF$80>=callstart,MIN(call,(0.5*(AG70+coupon)+0.5*(AG72+coupon))/(1+K71+OAS/10000)),(0.5*(AG70+coupon)+0.5*(AG72+coupon))/(1+K71+OAS/10000)))) -> 93.6576068
F72: 0.03487113931 | H72: 0.03962077909 | J72: 0.05535410333 | P72: =IF(mat=P$54,100,IF(mat<P$54,"",(0.5*(Q71+coupon)+0.5*(Q73+coupon))/(1+F72))) -> 76.90626986 | R72: =IF(mat=R$54,100,IF(mat<R$54,"",(0.5*(S71+coupon)+0.5*(S73+coupon))/(1+H72))) -> 82.63196846 | T72: =IF(mat=T$54,100,IF(mat<T$54,"",(0.5*(U71+coupon)+0.5*(U73+coupon))/(1+J72))) -> 89.67512327 | V72: =IF(mat=V$54,100,"") -> 100 | AA72: =IF(mat=AA$80,100,IF(mat<AA$80,"",IF(AA$80>=callstart,MIN(call,(0.5*(AB71+coupon)+0.5*(AB73+coupon))/(1+F72+OAS/10000)),(0.5*(AB71+coupon)+0.5*(AB73+coupon))/(1+F72+OAS/10000)))) -> 74.75608334 | AC72: =IF(mat=AC$80,100,IF(mat<AC$80,"",IF(AC$80>=callstart,MIN(call,(0.5*(AD71+coupon)+0.5*(AD73+coupon))/(1+H72+OAS/10000)),(0.5*(AD71+coupon)+0.5*(AD73+coupon))/(1+H72+OAS/10000)))) -> 81.08546862 | AE72: =IF(mat=AE$80,100,IF(mat<AE$80,"",IF(AE$80>=callstart,MIN(call,(0.5*(AF71+coupon)+0.5*(AF73+coupon))/(1+J72+OAS/10000)),(0.5*(AF71+coupon)+0.5*(AF73+coupon))/(1+J72+OAS/10000)))) -> 88.83516698 | AG72: =IF(mat=AG$54,100,"") -> 100
G73: 0.03918653729 | I73: 0.0451331169 | K73: 0.0588200691 | Q73: =IF(mat=Q$54,100,IF(mat<Q$54,"",(0.5*(R72+coupon)+0.5*(R74+coupon))/(1+G73))) -> 80.93415103 | S73: =IF(mat=S$54,100,IF(mat<S$54,"",(0.5*(T72+coupon)+0.5*(T74+coupon))/(1+I73))) -> 86.59530717 | U73: =IF(mat=U$54,100,IF(mat<U$54,"",(0.5*(V72+coupon)+0.5*(V74+coupon))/(1+K73))) -> 94.68086498 | AB73: =IF(mat=AB$80,100,IF(mat<AB$80,"",IF(AB$80>=callstart,MIN(call,(0.5*(AC72+coupon)+0.5*(AC74+coupon))/(1+G73+OAS/10000)),(0.5*(AC72+coupon)+0.5*(AC74+coupon))/(1+G73+OAS/10000)))) -> 79.03802191 | AD73: =IF(mat=AD$80,100,IF(mat<AD$80,"",IF(AD$80>=callstart,MIN(call,(0.5*(AE72+coupon)+0.5*(AE74+coupon))/(1+I73+OAS/10000)),(0.5*(AE72+coupon)+0.5*(AE74+coupon))/(1+I73+OAS/10000)))) -> 85.37539057 | AF73: =IF(mat=AF$80,100,IF(mat<AF$80,"",IF(AF$80>=callstart,MIN(call,(0.5*(AG72+coupon)+0.5*(AG74+coupon))/(1+K73+OAS/10000)),(0.5*(AG72+coupon)+0.5*(AG74+coupon))/(1+K73+OAS/10000)))) -> 94.23586085
H74: 0.03057576986 | J74: 0.04804899011 | R74: =IF(mat=R$54,100,IF(mat<R$54,"",(0.5*(S73+coupon)+0.5*(S75+coupon))/(1+H74))) -> 85.07939186 | T74: =IF(mat=T$54,100,IF(mat<T$54,"",(0.5*(U73+coupon)+0.5*(U75+coupon))/(1+J74))) -> 90.83212332 | V74: =IF(mat=V$54,100,"") -> 100 | AC74: =IF(mat=AC$80,100,IF(mat<AC$80,"",IF(AC$80>=callstart,MIN(call,(0.5*(AD73+coupon)+0.5*(AD75+coupon))/(1+H74+OAS/10000)),(0.5*(AD73+coupon)+0.5*(AD75+coupon))/(1+H74+OAS/10000)))) -> 83.47540821 | AE74: =IF(mat=AE$80,100,IF(mat<AE$80,"",IF(AE$80>=callstart,MIN(call,(0.5*(AF73+coupon)+0.5*(AF75+coupon))/(1+J74+OAS/10000)),(0.5*(AF73+coupon)+0.5*(AF75+coupon))/(1+J74+OAS/10000)))) -> 89.97588305 | AG74: =IF(mat=AG$54,100,"") -> 100
I75: 0.0377925044 | K75: 0.05291167092 | S75: =IF(mat=S$54,100,IF(mat<S$54,"",(0.5*(T74+coupon)+0.5*(T76+coupon))/(1+I75))) -> 88.26621235 | U75: =IF(mat=U$54,100,IF(mat<U$54,"",(0.5*(V74+coupon)+0.5*(V76+coupon))/(1+K75))) -> 95.21216525 | AD75: =IF(mat=AD$80,100,IF(mat<AD$80,"",IF(AD$80>=callstart,MIN(call,(0.5*(AE74+coupon)+0.5*(AE76+coupon))/(1+I75+OAS/10000)),(0.5*(AE74+coupon)+0.5*(AE76+coupon))/(1+I75+OAS/10000)))) -> 87.01482966 | AF75: =IF(mat=AF$80,100,IF(mat<AF$80,"",IF(AF$80>=callstart,MIN(call,(0.5*(AG74+coupon)+0.5*(AG76+coupon))/(1+K75+OAS/10000)),(0.5*(AG74+coupon)+0.5*(AG76+coupon))/(1+K75+OAS/10000)))) -> 94.7621647
J76: 0.04170793624 | T76: =IF(mat=T$54,100,IF(mat<T$54,"",(0.5*(U75+coupon)+0.5*(U77+coupon))/(1+J76))) -> 91.87190382 | V76: =IF(mat=V$54,100,"") -> 100 | AE76: =IF(mat=AE$80,100,IF(mat<AE$80,"",IF(AE$80>=callstart,MIN(call,(0.5*(AF75+coupon)+0.5*(AF77+coupon))/(1+J76+OAS/10000)),(0.5*(AF75+coupon)+0.5*(AF77+coupon))/(1+J76+OAS/10000)))) -> 91.00094124 | AG76: =IF(mat=AG$54,100,"") -> 100
K77: 0.04759676298 | U77: =IF(mat=U$54,100,IF(mat<U$54,"",(0.5*(V76+coupon)+0.5*(V78+coupon))/(1+K77))) -> 95.69521742 | AF77: =IF(mat=AF$80,100,IF(mat<AF$80,"",IF(AF$80>=callstart,MIN(call,(0.5*(AG76+coupon)+0.5*(AG78+coupon))/(1+K77+OAS/10000)),(0.5*(AG76+coupon)+0.5*(AG78+coupon))/(1+K77+OAS/10000)))) -> 95.2406501
V78: =IF(mat=V$54,100,"") -> 100 | AG78: =IF(mat=AG$54,100,"") -> 100
B80: Time in Years | C80: 1 | D80: 2 | E80: 3 | F80: 4 | G80: 5 | H80: 6 | I80: 7 | J80: 8 | K80: 9 | M80: =L80+1 -> 1 | N80: =M80+1 -> 2 | O80: 3 | P80: 4 | Q80: 5 | R80: 6 | S80: 7 | T80: 8 | U80: 9 | V80: 10 | W80: 0 | X80: =W80+1 -> 1 | Y80: =X80+1 -> 2 | Z80: 3 | AA80: 4 | AB80: 5 | AC80: 6 | AD80: 7 | AE80: 8 | AF80: 9 | AG80: 10
A82: Down Rate Tree
V84: =IF(mat=V$54,100,"") -> 100 | AG84: =IF(mat=AG$54,100,"") -> 100
K85: 0.1086838484 | U85: =IF(mat=U$54,100,IF(mat<U$54,"",(0.5*(V84+coupon)+0.5*(V86+coupon))/(1+K85))) -> 90.42253131 | AF85: =IF(mat=AF$106,100,IF(mat<AF$106,"",IF(AF$106>=callstart,MIN(call,(0.5*(AG84+coupon)+0.5*(AG86+coupon))/(1+K85+OAS/10000)),(0.5*(AG84+coupon)+0.5*(AG86+coupon))/(1+K85+OAS/10000)))) -> 90.01656991
J86: 0.1126898031 | T86: =IF(mat=T$54,100,IF(mat<T$54,"",(0.5*(U85+coupon)+0.5*(U87+coupon))/(1+J86))) -> 81.90618963 | V86: =IF(mat=V$54,100,"") -> 100 | AE86: =IF(mat=AE$106,100,IF(mat<AE$106,"",IF(AE$106>=callstart,MIN(call,(0.5*(AF85+coupon)+0.5*(AF87+coupon))/(1+J86+OAS/10000)),(0.5*(AF85+coupon)+0.5*(AF87+coupon))/(1+J86+OAS/10000)))) -> 81.17283108 | AG86: =IF(mat=AG$54,100,"") -> 100
I87: 0.1128801264 | K87: 0.09742948642 | S87: =IF(mat=S$54,100,IF(mat<S$54,"",(0.5*(T86+coupon)+0.5*(T88+coupon))/(1+I87))) -> 74.69364965 | U87: =IF(mat=U$54,100,IF(mat<U$54,"",(0.5*(V86+coupon)+0.5*(V88+coupon))/(1+K87))) -> 91.34983271 | AD87: =IF(mat=AD$106,100,IF(mat<AD$106,"",IF(AD$106>=callstart,MIN(call,(0.5*(AE86+coupon)+0.5*(AE88+coupon))/(1+I87+OAS/10000)),(0.5*(AE86+coupon)+0.5*(AE88+coupon))/(1+I87+OAS/10000)))) -> 73.69184842 | AF87: =IF(mat=AF$106,100,IF(mat<AF$106,"",IF(AF$106>=callstart,MIN(call,(0.5*(AG86+coupon)+0.5*(AG88+coupon))/(1+K87+OAS/10000)),(0.5*(AG86+coupon)+0.5*(AG88+coupon))/(1+K87+OAS/10000)))) -> 90.93552126
H88: 0.1232903339 | J88: 0.09755816319 | R88: =IF(mat=R$54,100,IF(mat<R$54,"",(0.5*(S87+coupon)+0.5*(S89+coupon))/(1+H88))) -> 68.0333746 | T88: =IF(mat=T$54,100,IF(mat<T$54,"",(0.5*(U87+coupon)+0.5*(U89+coupon))/(1+J88))) -> 83.84396689 | V88: =IF(mat=V$54,100,"") -> 100 | AC88: =IF(mat=AC$106,100,IF(mat<AC$106,"",IF(AC$106>=callstart,MIN(call,(0.5*(AD87+coupon)+0.5*(AD89+coupon))/(1+H88+OAS/10000)),(0.5*(AD87+coupon)+0.5*(AD89+coupon))/(1+H88+OAS/10000)))) -> 66.82044352 | AE88: =IF(mat=AE$106,100,IF(mat<AE$106,"",IF(AE$106>=callstart,MIN(call,(0.5*(AF87+coupon)+0.5*(AF89+coupon))/(1+J88+OAS/10000)),(0.5*(AF87+coupon)+0.5*(AF89+coupon))/(1+J88+OAS/10000)))) -> 83.08447457 | AG88: =IF(mat=AG$54,100,"") -> 100
G89: 0.09185844527 | I89: 0.09433781059 | K89: 0.08734052906 | Q89: =IF(mat=Q$54,100,IF(mat<Q$54,"",(0.5*(R88+coupon)+0.5*(R90+coupon))/(1+G89))) -> 64.51631024 | S89: =IF(mat=S$54,100,IF(mat<S$54,"",(0.5*(T88+coupon)+0.5*(T90+coupon))/(1+I89))) -> 77.6488145 | U89: =IF(mat=U$54,100,IF(mat<U$54,"",(0.5*(V88+coupon)+0.5*(V90+coupon))/(1+K89))) -> 92.19742787 | AB89: =IF(mat=AB$106,100,IF(mat<AB$106,"",IF(AB$106>=callstart,MIN(call,(0.5*(AC88+coupon)+0.5*(AC90+coupon))/(1+G89+OAS/10000)),(0.5*(AC88+coupon)+0.5*(AC90+coupon))/(1+G89+OAS/10000)))) -> 63.07220486 | AD89: =IF(mat=AD$106,100,IF(mat<AD$106,"",IF(AD$106>=callstart,MIN(call,(0.5*(AE88+coupon)+0.5*(AE90+coupon))/(1+I89+OAS/10000)),(0.5*(AE88+coupon)+0.5*(AE90+coupon))/(1+I89+OAS/10000)))) -> 76.59387265 | AF89: =IF(mat=AF$106,100,IF(mat<AF$106,"",IF(AF$106>=callstart,MIN(call,(0.5*(AG88+coupon)+0.5*(AG90+coupon))/(1+K89+OAS/10000)),(0.5*(AG88+coupon)+0.5*(AG90+coupon))/(1+K89+OAS/10000)))) -> 91.77541008
F90: 0.09238962713 | H90: 0.09511230508 | J90: 0.08445835326 | P90: =IF(mat=P$54,100,IF(mat<P$54,"",(0.5*(Q89+coupon)+0.5*(Q91+coupon))/(1+F90))) -> 61.48940394 | R90: =IF(mat=R$54,100,IF(mat<R$54,"",(0.5*(S89+coupon)+0.5*(S91+coupon))/(1+H90))) -> 72.35198178 | T90: =IF(mat=T$54,100,IF(mat<T$54,"",(0.5*(U89+coupon)+0.5*(U91+coupon))/(1+J90))) -> 85.60410041 | V90: =IF(mat=V$54,100,"") -> 100 | AA90: =IF(mat=AA$106,100,IF(mat<AA$106,"",IF(AA$106>=callstart,MIN(call,(0.5*(AB89+coupon)+0.5*(AB91+coupon))/(1+F90+OAS/10000)),(0.5*(AB89+coupon)+0.5*(AB91+coupon))/(1+F90+OAS/10000)))) -> 59.83397206 | AC90: =IF(mat=AC$106,100,IF(mat<AC$106,"",IF(AC$106>=callstart,MIN(call,(0.5*(AD89+coupon)+0.5*(AD91+coupon))/(1+H90+OAS/10000)),(0.5*(AD89+coupon)+0.5*(AD91+coupon))/(1+H90+OAS/10000)))) -> 71.0421176 | AE90: =IF(mat=AE$106,100,IF(mat<AE$106,"",IF(AE$106>=callstart,MIN(call,(0.5*(AF89+coupon)+0.5*(AF91+coupon))/(1+J90+OAS/10000)),(0.5*(AF89+coupon)+0.5*(AF91+coupon))/(1+J90+OAS/10000)))) -> 84.82060595 | AG90: =IF(mat=AG$54,100,"") -> 100
E91: 0.08090116922 | G91: 0.07486991771 | I91: 0.07884135845 | K91: 0.0782962971 | O91: =IF(mat=O$54,100,IF(mat<O$54,"",(0.5*(P90+coupon)+0.5*(P92+coupon))/(1+E91))) -> 59.69961181 | Q91: =IF(mat=Q$54,100,IF(mat<Q$54,"",(0.5*(R90+coupon)+0.5*(R92+coupon))/(1+G91))) -> 69.32446385 | S91: =IF(mat=S$54,100,IF(mat<S$54,"",(0.5*(T90+coupon)+0.5*(T92+coupon))/(1+I91))) -> 80.31827658 | U91: =IF(mat=U$54,100,IF(mat<U$54,"",(0.5*(V90+coupon)+0.5*(V92+coupon))/(1+K91))) -> 92.97073566 | Z91: =IF(mat=Z$106,100,IF(mat<Z$106,"",IF(Z$106>=callstart,MIN(call,(0.5*(AA90+coupon)+0.5*(AA92+coupon))/(1+E91+OAS/10000)),(0.5*(AA90+coupon)+0.5*(AA92+coupon))/(1+E91+OAS/10000)))) -> 57.81880025 | AB91: =IF(mat=AB$106,100,IF(mat<AB$106,"",IF(AB$106>=callstart,MIN(call,(0.5*(AC90+coupon)+0.5*(AC92+coupon))/(1+G91+OAS/10000)),(0.5*(AC90+coupon)+0.5*(AC92+coupon))/(1+G91+OAS/10000)))) -> 67.75015572 | AD91: =IF(mat=AD$106,100,IF(mat<AD$106,"",IF(AD$106>=callstart,MIN(call,(0.5*(AE90+coupon)+0.5*(AE92+coupon))/(1+I91+OAS/10000)),(0.5*(AE90+coupon)+0.5*(AE92+coupon))/(1+I91+OAS/10000)))) -> 79.21474286 | AF91: =IF(mat=AF$106,100,IF(mat<AF$106,"",IF(AF$106>=callstart,MIN(call,(0.5*(AG90+coupon)+0.5*(AG92+coupon))/(1+K91+OAS/10000)),(0.5*(AG90+coupon)+0.5*(AG92+coupon))/(1+K91+OAS/10000)))) -> 92.54162529
D92: 0.06863047512 | F92: 0.06933094666 | H92: 0.07337437002 | J92: 0.07311754548 | N92: =IF(mat=N$54,100,IF(mat<N$54,"",(0.5*(O91+coupon)+0.5*(O93+coupon))/(1+D92))) -> 59.01533393 | P92: =IF(mat=P$54,100,IF(mat<P$54,"",(0.5*(Q91+coupon)+0.5*(Q93+coupon))/(1+F92))) -> 67.06935648 | R92: =IF(mat=R$54,100,IF(mat<R$54,"",(0.5*(S91+coupon)+0.5*(S93+coupon))/(1+H92))) -> 76.17757972 | T92: =IF(mat=T$54,100,IF(mat<T$54,"",(0.5*(U91+coupon)+0.5*(U93+coupon))/(1+J92))) -> 87.19725683 | V92: =IF(mat=V$54,100,"") -> 100 | Y92: =IF(mat=Y$106,100,IF(mat<Y$106,"",IF(Y$106>=callstart,MIN(call,(0.5*(Z91+coupon)+0.5*(Z93+coupon))/(1+D92+OAS/10000)),(0.5*(Z91+coupon)+0.5*(Z93+coupon))/(1+D92+OAS/10000)))) -> 56.88310423 | AA92: =IF(mat=AA$106,100,IF(mat<AA$106,"",IF(AA$106>=callstart,MIN(call,(0.5*(AB91+coupon)+0.5*(AB93+coupon))/(1+F92+OAS/10000)),(0.5*(AB91+coupon)+0.5*(AB93+coupon))/(1+F92+OAS/10000)))) -> 65.23703353 | AC92: =IF(mat=AC$106,100,IF(mat<AC$106,"",IF(AC$106>=callstart,MIN(call,(0.5*(AD91+coupon)+0.5*(AD93+coupon))/(1+H92+OAS/10000)),(0.5*(AD91+coupon)+0.5*(AD93+coupon))/(1+H92+OAS/10000)))) -> 74.78059255 | AE92: =IF(mat=AE$106,100,IF(mat<AE$106,"",IF(AE$106>=callstart,MIN(call,(0.5*(AF91+coupon)+0.5*(AF93+coupon))/(1+J92+OAS/10000)),(0.5*(AF91+coupon)+0.5*(AF93+coupon))/(1+J92+OAS/10000)))) -> 86.39182306 | AG92: =IF(mat=AG$54,100,"") -> 100
C93: 0.05643793971 | E93: 0.05851688315 | G93: 0.06102329036 | I93: 0.06589043951 | K93: 0.07018860779 | M93: =IF(mat=M$54,100,IF(mat<M$54,"",(0.5*(N92+coupon)+0.5*(N94+coupon))/(1+C93))) -> 59.29546607 | O93: =IF(mat=O$54,100,IF(mat<O$54,"",(0.5*(P92+coupon)+0.5*(P94+coupon))/(1+E93))) -> 65.93155687 | Q93: =IF(mat=Q$54,100,IF(mat<Q$54,"",(0.5*(R92+coupon)+0.5*(R94+coupon))/(1+G93))) -> 73.61421306 | S93: =IF(mat=S$54,100,IF(mat<S$54,"",(0.5*(T92+coupon)+0.5*(T94+coupon))/(1+I93))) -> 82.7158467 | U93: =IF(mat=U$54,100,IF(mat<U$54,"",(0.5*(V92+coupon)+0.5*(V94+coupon))/(1+K93))) -> 93.67507678 | X93: =IF(mat=X$106,100,IF(mat<X$106,"",IF(X$106>=callstart,MIN(call,(0.5*(Y92+coupon)+0.5*(Y94+coupon))/(1+C93+OAS/10000)),(0.5*(Y92+coupon)+0.5*(Y94+coupon))/(1+C93+OAS/10000)))) -> 56.87661562 | Z93: =IF(mat=Z$106,100,IF(mat<Z$106,"",IF(Z$106>=callstart,MIN(call,(0.5*(AA92+coupon)+0.5*(AA94+coupon))/(1+E93+OAS/10000)),(0.5*(AA92+coupon)+0.5*(AA94+coupon))/(1+E93+OAS/10000)))) -> 63.82406819 | AB93: =IF(mat=AB$106,100,IF(mat<AB$106,"",IF(AB$106>=callstart,MIN(call,(0.5*(AC92+coupon)+0.5*(AC94+coupon))/(1+G93+OAS/10000)),(0.5*(AC92+coupon)+0.5*(AC94+coupon))/(1+G93+OAS/10000)))) -> 71.92217227 | AD93: =IF(mat=AD$106,100,IF(mat<AD$106,"",IF(AD$106>=callstart,MIN(call,(0.5*(AE92+coupon)+0.5*(AE94+coupon))/(1+I93+OAS/10000)),(0.5*(AE92+coupon)+0.5*(AE94+coupon))/(1+I93+OAS/10000)))) -> 81.56820591 | AF93: =IF(mat=AF$106,100,IF(mat<AF$106,"",IF(AF$106>=callstart,MIN(call,(0.5*(AG92+coupon)+0.5*(AG94+coupon))/(1+K93+OAS/10000)),(0.5*(AG92+coupon)+0.5*(AG94+coupon))/(1+K93+OAS/10000)))) -> 93.23945517
B94: 0.045 | D94: 0.04781314449 | F94: 0.05202727097 | H94: 0.05660464406 | J94: 0.06329954643 | L94: =IF(mat=L$54,100,IF(mat<L$54,"",(0.5*(M93+coupon)+0.5*(M95+coupon))/(1+B94))) -> 60.39441567 | N94: =IF(mat=N$54,100,IF(mat<N$54,"",(0.5*(O93+coupon)+0.5*(O95+coupon))/(1+D94))) -> 65.76862608 | P94: =IF(mat=P$54,100,IF(mat<P$54,"",(0.5*(Q93+coupon)+0.5*(Q95+coupon))/(1+F94))) -> 72.00997568 | R94: =IF(mat=R$54,100,IF(mat<R$54,"",(0.5*(S93+coupon)+0.5*(S95+coupon))/(1+H94))) -> 79.5352094 | T94: =IF(mat=T$54,100,IF(mat<T$54,"",(0.5*(U93+coupon)+0.5*(U95+coupon))/(1+J94))) -> 88.63480357 | V94: =IF(mat=V$54,100,"") -> 100 | W94: =IF(mat=W$106,100,IF(mat<W$106,"",IF(W$106>=callstart,MIN(call,(0.5*(X93+coupon)+0.5*(X95+coupon))/(1+B94+OAS/10000)),(0.5*(X93+coupon)+0.5*(X95+coupon))/(1+B94+OAS/10000)))) -> 57.64741759 | Y94: =IF(mat=Y$106,100,IF(mat<Y$106,"",IF(Y$106>=callstart,MIN(call,(0.5*(Z93+coupon)+0.5*(Z95+coupon))/(1+D94+OAS/10000)),(0.5*(Z93+coupon)+0.5*(Z95+coupon))/(1+D94+OAS/10000)))) -> 63.35889117 | AA94: =IF(mat=AA$106,100,IF(mat<AA$106,"",IF(AA$106>=callstart,MIN(call,(0.5*(AB93+coupon)+0.5*(AB95+coupon))/(1+F94+OAS/10000)),(0.5*(AB93+coupon)+0.5*(AB95+coupon))/(1+F94+OAS/10000)))) -> 70.01891461 | AC94: =IF(mat=AC$106,100,IF(mat<AC$106,"",IF(AC$106>=callstart,MIN(call,(0.5*(AD93+coupon)+0.5*(AD95+coupon))/(1+H94+OAS/10000)),(0.5*(AD93+coupon)+0.5*(AD95+coupon))/(1+H94+OAS/10000)))) -> 78.06082892 | AE94: =IF(mat=AE$106,100,IF(mat<AE$106,"",IF(AE$106>=callstart,MIN(call,(0.5*(AF93+coupon)+0.5*(AF95+coupon))/(1+J94+OAS/10000)),(0.5*(AF93+coupon)+0.5*(AF95+coupon))/(1+J94+OAS/10000)))) -> 87.8094007 | AG94: =IF(mat=AG$54,100,"") -> 100
C95: 0.03783148235 | E95: 0.04232603368 | G95: 0.04973749245 | I95: 0.05506691037 | K95: 0.06292048085 | M95: =IF(mat=M$54,100,IF(mat<M$54,"",(0.5*(N94+coupon)+0.5*(N96+coupon))/(1+C95))) -> 66.42886269 | O95: =IF(mat=O$54,100,IF(mat<O$54,"",(0.5*(P94+coupon)+0.5*(P96+coupon))/(1+E95))) -> 71.39490494 | Q95: =IF(mat=Q$54,100,IF(mat<Q$54,"",(0.5*(R94+coupon)+0.5*(R96+coupon))/(1+G95))) -> 77.39870333 | S95: =IF(mat=S$54,100,IF(mat<S$54,"",(0.5*(T94+coupon)+0.5*(T96+coupon))/(1+I95))) -> 84.85869653 | U95: =IF(mat=U$54,100,IF(mat<U$54,"",(0.5*(V94+coupon)+0.5*(V96+coupon))/(1+K95))) -> 94.31561608 | X95: =IF(mat=X$106,100,IF(mat<X$106,"",IF(X$106>=callstart,MIN(call,(0.5*(Y94+coupon)+0.5*(Y96+coupon))/(1+C95+OAS/10000)),(0.5*(Y94+coupon)+0.5*(Y96+coupon))/(1+C95+OAS/10000)))) -> 63.68296133 | Z95: =IF(mat=Z$106,100,IF(mat<Z$106,"",IF(Z$106>=callstart,MIN(call,(0.5*(AA94+coupon)+0.5*(AA96+coupon))/(1+E95+OAS/10000)),(0.5*(AA94+coupon)+0.5*(AA96+coupon))/(1+E95+OAS/10000)))) -> 69.0860787 | AB95: =IF(mat=AB$106,100,IF(mat<AB$106,"",IF(AB$106>=callstart,MIN(call,(0.5*(AC94+coupon)+0.5*(AC96+coupon))/(1+G95+OAS/10000)),(0.5*(AC94+coupon)+0.5*(AC96+coupon))/(1+G95+OAS/10000)))) -> 75.60163217 | AD95: =IF(mat=AD$106,100,IF(mat<AD$106,"",IF(AD$106>=callstart,MIN(call,(0.5*(AE94+coupon)+0.5*(AE96+coupon))/(1+I95+OAS/10000)),(0.5*(AE94+coupon)+0.5*(AE96+coupon))/(1+I95+OAS/10000)))) -> 83.67127108 | AF95: =IF(mat=AF$106,100,IF(mat<AF$106,"",IF(AF$106>=callstart,MIN(call,(0.5*(AG94+coupon)+0.5*(AG96+coupon))/(1+K95+OAS/10000)),(0.5*(AG94+coupon)+0.5*(AG96+coupon))/(1+K95+OAS/10000)))) -> 93.8740307
D96: 0.03331022809 | F96: 0.03904226114 | H96: 0.0436676421 | J96: 0.05479987805 | N96: =IF(mat=N$54,100,IF(mat<N$54,"",(0.5*(O95+coupon)+0.5*(O97+coupon))/(1+D96))) -> 71.61530399 | P96: =IF(mat=P$54,100,IF(mat<P$54,"",(0.5*(Q95+coupon)+0.5*(Q97+coupon))/(1+F96))) -> 76.3235605 | R96: =IF(mat=R$54,100,IF(mat<R$54,"",(0.5*(S95+coupon)+0.5*(S97+coupon))/(1+H96))) -> 82.46143211 | T96: =IF(mat=T$54,100,IF(mat<T$54,"",(0.5*(U95+coupon)+0.5*(U97+coupon))/(1+J96))) -> 89.92840197 | V96: =IF(mat=V$54,100,"") -> 100 | Y96: =IF(mat=Y$106,100,IF(mat<Y$106,"",IF(Y$106>=callstart,MIN(call,(0.5*(Z95+coupon)+0.5*(Z97+coupon))/(1+D96+OAS/10000)),(0.5*(Z95+coupon)+0.5*(Z97+coupon))/(1+D96+OAS/10000)))) -> 68.96230275 | AA96: =IF(mat=AA$106,100,IF(mat<AA$106,"",IF(AA$106>=callstart,MIN(call,(0.5*(AB95+coupon)+0.5*(AB97+coupon))/(1+F96+OAS/10000)),(0.5*(AB95+coupon)+0.5*(AB97+coupon))/(1+F96+OAS/10000)))) -> 74.19238297 | AC96: =IF(mat=AC$106,100,IF(mat<AC$106,"",IF(AC$106>=callstart,MIN(call,(0.5*(AD95+coupon)+0.5*(AD97+coupon))/(1+H96+OAS/10000)),(0.5*(AD95+coupon)+0.5*(AD97+coupon))/(1+H96+OAS/10000)))) -> 80.91892297 | AE96: =IF(mat=AE$106,100,IF(mat<AE$106,"",IF(AE$106>=callstart,MIN(call,(0.5*(AF95+coupon)+0.5*(AF97+coupon))/(1+J96+OAS/10000)),(0.5*(AF95+coupon)+0.5*(AF97+coupon))/(1+J96+OAS/10000)))) -> 89.08489095 | AG96: =IF(mat=AG$54,100,"") -> 100
E97: 0.03061497863 | G97: 0.04053891785 | I97: 0.04602131417 | K97: 0.05640497844 | O97: =IF(mat=O$54,100,IF(mat<O$54,"",(0.5*(P96+coupon)+0.5*(P98+coupon))/(1+E97))) -> 76.10674725 | Q97: =IF(mat=Q$54,100,IF(mat<Q$54,"",(0.5*(R96+coupon)+0.5*(R98+coupon))/(1+G97))) -> 80.70810643 | S97: =IF(mat=S$54,100,IF(mat<S$54,"",(0.5*(T96+coupon)+0.5*(T98+coupon))/(1+I97))) -> 86.7659603 | U97: =IF(mat=U$54,100,IF(mat<U$54,"",(0.5*(V96+coupon)+0.5*(V98+coupon))/(1+K97))) -> 94.89731878 | Z97: =IF(mat=Z$106,100,IF(mat<Z$106,"",IF(Z$106>=callstart,MIN(call,(0.5*(AA96+coupon)+0.5*(AA98+coupon))/(1+E97+OAS/10000)),(0.5*(AA96+coupon)+0.5*(AA98+coupon))/(1+E97+OAS/10000)))) -> 73.62244989 | AB97: =IF(mat=AB$106,100,IF(mat<AB$106,"",IF(AB$106>=callstart,MIN(call,(0.5*(AC96+coupon)+0.5*(AC98+coupon))/(1+G97+OAS/10000)),(0.5*(AC96+coupon)+0.5*(AC98+coupon))/(1+G97+OAS/10000)))) -> 78.81833438 | AD97: =IF(mat=AD$106,100,IF(mat<AD$106,"",IF(AD$106>=callstart,MIN(call,(0.5*(AE96+coupon)+0.5*(AE98+coupon))/(1+I97+OAS/10000)),(0.5*(AE96+coupon)+0.5*(AE98+coupon))/(1+I97+OAS/10000)))) -> 85.54284121 | AF97: =IF(mat=AF$106,100,IF(mat<AF$106,"",IF(AF$106>=callstart,MIN(call,(0.5*(AG96+coupon)+0.5*(AG98+coupon))/(1+K97+OAS/10000)),(0.5*(AG96+coupon)+0.5*(AG98+coupon))/(1+K97+OAS/10000)))) -> 94.45028244
F98: 0.02929806093 | H98: 0.03368739435 | J98: 0.04744151896 | P98: =IF(mat=P$54,100,IF(mat<P$54,"",(0.5*(Q97+coupon)+0.5*(Q99+coupon))/(1+F98))) -> 80.04994688 | R98: =IF(mat=R$54,100,IF(mat<R$54,"",(0.5*(S97+coupon)+0.5*(S99+coupon))/(1+H98))) -> 84.99841934 | T98: =IF(mat=T$54,100,IF(mat<T$54,"",(0.5*(U97+coupon)+0.5*(U99+coupon))/(1+J98))) -> 91.08968566 | V98: =IF(mat=V$54,100,"") -> 100 | AA98: =IF(mat=AA$106,100,IF(mat<AA$106,"",IF(AA$106>=callstart,MIN(call,(0.5*(AB97+coupon)+0.5*(AB99+coupon))/(1+F98+OAS/10000)),(0.5*(AB97+coupon)+0.5*(AB99+coupon))/(1+F98+OAS/10000)))) -> 77.79664078 | AC98: =IF(mat=AC$106,100,IF(mat<AC$106,"",IF(AC$106>=callstart,MIN(call,(0.5*(AD97+coupon)+0.5*(AD99+coupon))/(1+H98+OAS/10000)),(0.5*(AD97+coupon)+0.5*(AD99+coupon))/(1+H98+OAS/10000)))) -> 83.3963491 | AE98: =IF(mat=AE$106,100,IF(mat<AE$106,"",IF(AE$106>=callstart,MIN(call,(0.5*(AF97+coupon)+0.5*(AF99+coupon))/(1+J98+OAS/10000)),(0.5*(AF97+coupon)+0.5*(AF99+coupon))/(1+J98+OAS/10000)))) -> 90.22980782 | AG98: =IF(mat=AG$54,100,"") -> 100
G99: 0.03304155034 | I99: 0.03846159779 | K99: 0.05056416525 | Q99: =IF(mat=Q$54,100,IF(mat<Q$54,"",(0.5*(R98+coupon)+0.5*(R100+coupon))/(1+G99))) -> 83.58240377 | S99: =IF(mat=S$54,100,IF(mat<S$54,"",(0.5*(T98+coupon)+0.5*(T100+coupon))/(1+I99))) -> 88.45762893 | U99: =IF(mat=U$54,100,IF(mat<U$54,"",(0.5*(V98+coupon)+0.5*(V100+coupon))/(1+K99))) -> 95.42491864 | AB99: =IF(mat=AB$106,100,IF(mat<AB$106,"",IF(AB$106>=callstart,MIN(call,(0.5*(AC98+coupon)+0.5*(AC100+coupon))/(1+G99+OAS/10000)),(0.5*(AC98+coupon)+0.5*(AC100+coupon))/(1+G99+OAS/10000)))) -> 81.61149503 | AD99: =IF(mat=AD$106,100,IF(mat<AD$106,"",IF(AD$106>=callstart,MIN(call,(0.5*(AE98+coupon)+0.5*(AE100+coupon))/(1+I99+OAS/10000)),(0.5*(AE98+coupon)+0.5*(AE100+coupon))/(1+I99+OAS/10000)))) -> 87.20263189 | AF99: =IF(mat=AF$106,100,IF(mat<AF$106,"",IF(AF$106>=callstart,MIN(call,(0.5*(AG98+coupon)+0.5*(AG100+coupon))/(1+K99+OAS/10000)),(0.5*(AG98+coupon)+0.5*(AG100+coupon))/(1+K99+OAS/10000)))) -> 94.97290956
H100: 0.02598813409 | J100: 0.04107121765 | R100: =IF(mat=R$54,100,IF(mat<R$54,"",(0.5*(S99+coupon)+0.5*(S101+coupon))/(1+H100))) -> 87.18977261 | T100: =IF(mat=T$54,100,IF(mat<T$54,"",(0.5*(U99+coupon)+0.5*(U101+coupon))/(1+J100))) -> 92.13001569 | V100: =IF(mat=V$54,100,"") -> 100 | AC100: =IF(mat=AC$106,100,IF(mat<AC$106,"",IF(AC$106>=callstart,MIN(call,(0.5*(AD99+coupon)+0.5*(AD101+coupon))/(1+H100+OAS/10000)),(0.5*(AD99+coupon)+0.5*(AD101+coupon))/(1+H100+OAS/10000)))) -> 85.53589654 | AE100: =IF(mat=AE$106,100,IF(mat<AE$106,"",IF(AE$106>=callstart,MIN(call,(0.5*(AF99+coupon)+0.5*(AF101+coupon))/(1+J100+OAS/10000)),(0.5*(AF99+coupon)+0.5*(AF101+coupon))/(1+J100+OAS/10000)))) -> 91.25538738 | AG100: =IF(mat=AG$54,100,"") -> 100
I101: 0.03214368235 | K101: 0.04532817628 | S101: =IF(mat=S$54,100,IF(mat<S$54,"",(0.5*(T100+coupon)+0.5*(T102+coupon))/(1+I101))) -> 89.95371528 | U101: =IF(mat=U$54,100,IF(mat<U$54,"",(0.5*(V100+coupon)+0.5*(V102+coupon))/(1+K101))) -> 95.9028966 | AD101: =IF(mat=AD$106,100,IF(mat<AD$106,"",IF(AD$106>=callstart,MIN(call,(0.5*(AE100+coupon)+0.5*(AE102+coupon))/(1+I101+OAS/10000)),(0.5*(AE100+coupon)+0.5*(AE102+coupon))/(1+I101+OAS/10000)))) -> 88.67035685 | AF101: =IF(mat=AF$106,100,IF(mat<AF$106,"",IF(AF$106>=callstart,MIN(call,(0.5*(AG100+coupon)+0.5*(AG102+coupon))/(1+K101+OAS/10000)),(0.5*(AG100+coupon)+0.5*(AG102+coupon))/(1+K101+OAS/10000)))) -> 95.44635883
J102: 0.03555630056 | T102: =IF(mat=T$54,100,IF(mat<T$54,"",(0.5*(U101+coupon)+0.5*(U103+coupon))/(1+J102))) -> 93.06030217 | V102: =IF(mat=V$54,100,"") -> 100 | AE102: =IF(mat=AE$106,100,IF(mat<AE$106,"",IF(AE$106>=callstart,MIN(call,(0.5*(AF101+coupon)+0.5*(AF103+coupon))/(1+J102+OAS/10000)),(0.5*(AF101+coupon)+0.5*(AF103+coupon))/(1+J102+OAS/10000)))) -> 92.17241346 | AG102: =IF(mat=AG$54,100,"") -> 100
K103: 0.04063438093 | U103: =IF(mat=U$54,100,IF(mat<U$54,"",(0.5*(V102+coupon)+0.5*(V104+coupon))/(1+K103))) -> 96.3354679 | AF103: =IF(mat=AF$106,100,IF(mat<AF$106,"",IF(AF$106>=callstart,MIN(call,(0.5*(AG102+coupon)+0.5*(AG104+coupon))/(1+K103+OAS/10000)),(0.5*(AG102+coupon)+0.5*(AG104+coupon))/(1+K103+OAS/10000)))) -> 95.87481229
V104: =IF(mat=V$54,100,"") -> 100 | AG104: =IF(mat=AG$54,100,"") -> 100
B106: Time in Years | C106: 1 | D106: 2 | E106: 3 | F106: 4 | G106: 5 | H106: 6 | I106: 7 | J106: 8 | K106: 9 | M106: =L106+1 -> 1 | N106: =M106+1 -> 2 | O106: 3 | P106: 4 | Q106: 5 | R106: 6 | S106: 7 | T106: 8 | U106: 9 | V106: 10 | W106: 0 | X106: =W106+1 -> 1 | Y106: =X106+1 -> 2 | Z106: 3 | AA106: 4 | AB106: 5 | AC106: 6 | AD106: 7 | AE106: 8 | AF106: 9 | AG106: 10
